{"text_format":"1","workbook":"xlsx","n_sheets":12,"sheets":["Tableau de bord","Décompte général","Tutoriel","Ressources",">>>","<<<","Informations film","Base de données ayants droit","Matrice décompte auteur.e","Matrice décompte interpréte","Matrice décompte sofica","Matrice décompte autre AD"],"not_rendered":{"charts":0,"images":10,"macros":1,"external_links":0,"defined_names":25,"comments":0,"pivot_tables":0},"unopened":[],"bounds":{"document_bytes":16777216,"sheet_cells":100000,"rows_first":2000,"rows_last":500,"rows_between":2000,"halvings":0,"cell_chars":16384,"cell_head_chars":4096},"cells_cut":0,"cells_raw":0,"read":"whole","date_system":"1900"}

{"sheet":"Tableau de bord","index":0,"n_rows":19,"n_cols":11,"rows_kept":19,"cut":false,"hidden":false,"merged":[]}
[]
[]
[]
[]
[]
[null,null,null,null,"\n"]
[]
[]
[]
[]
[]
[]
[]
[null,null,null,null,null,null,null,null,null,null,0]
[null,null,null,null,null,null,null,null,null,null,"2023-12-31"]
[]
[]
[]
[null,false]

{"sheet":"Décompte général","index":1,"n_rows":115,"n_cols":14,"rows_kept":115,"cut":false,"hidden":false,"merged":[]}
[]
[]
[]
[]
[]
[null,null,null,null,null,null,null,null,null,null,null,null,"LÉGENDE DES COULEURS DE REMPLISSAGE"]
[null,{"$f":"'Informations film'!C2","v":"FILM"},null,null,null,null,null,null,null,{"$f":"\"Période arrétée au : \"&TEXT('Informations film'!C9,\"jj/mm/aaaa\")","v":"Période arrétée au : 31/12/2023"}]
[null,{"$f":"+'Informations film'!C6","v":"[à compléter]"},null,null,null,null,null,null,null,null,null,null,0,"Variables à compléter à partir des relevés d'exploitation des mandataires, voir la section tutoriel pour plus de détail"]
[null,null,null,null,null,null,null,null,null,null,null,null,null,"Lignes qui concernent les auteur.e.s, voir la section tutoriel pour plus de détail"]
[null,null,null,null,null,null,null,"ANTÉRIEUR","PÉRIODE","CUMUL"]
[null,"1/ EXPLOITATION CINÉMA FRANCE",null,null,null,null,"[DISTRIBUTEUR]",null,null,null,null,null,"COMMENTAIRES"]
[null,null,"Nombre d'entrées encaissées",null,null,null,0]
[null,null,"Prix hors taxes (net de TVA et de TSA) payé par le public ",null,null,null,null,0,{"$f":"J13-H13","v":0},{"$f":"+J15*2","v":0},null,null,"Si l'information n'est pas disponible, le prix payé par le public peut-être calculé sur la base Recette brute distributeur x2"]
[]
[null,null,"Recette brute distributeur secteur commercial",null,null,null,null,0,{"$f":"J15-H15","v":0},0]
[null,null,"Commission de distribution secteur commercial",null,null,null,0.25,0,{"$f":"J16-H16","v":0},{"$f":"J15*-G16","v":0},null,null,"En cas de palier de commission, ajouter les lignes nécessaires et modifier la calcul des RNPP"]
[null,null,"Frais de commercialisation",null,null,null,null,0,0,0,null,null,"Indiquer l'intégralité des frais de commercialisation cinéma (en négatif)"]
[null,null,"Cotisations et taxes",null,null,null,null,0,0,0,null,null,"Indiquer les cotisations et taxes en négatif"]
[null,null,"Recette nette part producteur cinéma France secteur commercial",null,null,null,null,0,{"$f":"J19-H19","v":0},{"$f":"SUM(J15:J18)","v":0}]
[]
[null,null,"Recette brute distributeur secteur non commercial",null,null,null,null,0,{"$f":"J21-H21","v":0},0]
[null,null,"Commission de distribution secteur non commercial",null,null,null,0.3,0,{"$f":"J22-H22","v":0},{"$f":"J21*-G22","v":0}]
[null,null,"Cotisations et taxes",null,null,null,null,0,0,0,null,null,"(en négatif)"]
[null,null,"Recette nette part producteur cinéma France secteur non commercial",null,null,null,null,0,0,{"$f":"SUM(J21:J23)","v":0}]
[]
[null,null,"Minimum garanti",null,null,null,0,0,{"$f":"J26-H26","v":0},{"$f":"+-G26","v":0},null,null,"Le cas échéant, compléter en case G le minimum garanti (en positif)"]
[null,null,"Recette nette part producteur cinéma France (après MG)",null,null,null,null,0,{"$f":"J27-H27","v":0},{"$f":"SUM(J19,J24,J26)","v":0}]
[]
[null,"2/ EXPLOITATION VIDÉO FRANCE",null,null,null,null,"[DISTRIBUTEUR]"]
[null,null,"Chiffre d'affaires brut éditeur HT",null,null,null,null,0,{"$f":"J30-H30","v":0},0]
[null,null,"Coefficient correcteur (multiplicateur) ",null,null,null,1.5,null,null,null,null,null,"A modifier selon la base de calcul indiquée dans le contrat d'auteur"]
[null,null,"Base de répartition auteur",null,null,null,null,0,{"$f":"J32-H32","v":0},{"$f":"J30*G31","v":0},null,null,"A modifier selon la base de calcul indiquée dans le contrat d'auteur"]
[]
[null,null,null,null,null,null,"Nombre vente"]
[null,null,"Chiffre d'affaires net éditeur HT - Vente directe",null,null,null,null,0,{"$f":"J35-H35","v":0},0,null,null,"Nombre de vente à indiquer si information disponible"]
[null,null,"Chiffre d'affaires net éditeur HT - Location",null,null,null,null,0,{"$f":"J36-H36","v":0},0,null,null,"Nombre de vente à indiquer si information disponible"]
[null,null,"Chiffre d'affaires net éditeur HT - Autres circuits",null,null,null,null,0,0,0,null,null,"Nombre de vente à indiquer si information disponible"]
[null,null,"Royalties - Vente directe",null,null,null,0.3,0,0,{"$f":"J35*G38","v":0},null,null,"En cas de commission, modifier la case et le calcul des RNPP Vidéo"]
[null,null,"Royalties - Location",null,null,null,0.3,0,0,{"$f":"J36*G39","v":0}]
[null,null,"Royalties - Autres circuits",null,null,null,0.3,0,0,{"$f":"J37*G40","v":0}]
[null,null,"Provision pour retour",null,null,null,null,0,0,0,null,null,"Le cas échéant, sinon laisser à zéro"]
[null,null,"Frais de commercialisation",null,null,null,null,0,0,0]
[null,null,"Cotisations et taxes",null,null,null,null,0,0,0]
[null,null,"Minimum garanti",null,null,null,0,0,0,{"$f":"-G44","v":0},null,null,"Le cas échéant, compléter en case G le minimum garanti (en positif)"]
[null,null,"Recette nette part producteur vidéo France (après MG)",null,null,null,null,0,0,{"$f":"SUM(J38:J44)","v":0}]
[]
[null,"3/ EXPLOITATION VOD FRANCE",null,null,null,null,"[DISTRIBUTEUR]"]
[null,null,"Prix HT payé par le public",null,null,null,null,0,{"$f":"J48-H48","v":0},0]
[]
[null,null,null,null,null,null,"Nombre acte"]
[null,null,"Recette brute - VOD locative",null,null,null,null,0,{"$f":"J51-H51","v":0},0,null,null,"Nombre d'acte à indiquer si information disponible"]
[null,null,"Recette brute - Téléchargement définitif (EST)",null,null,null,null,0,{"$f":"J52-H52","v":0},0,null,null,"Nombre d'acte à indiquer si information disponible"]
[null,null,"Commission de distribution - VOD locative",null,null,null,0.3,0,0,{"$f":"J51*-G53","v":0}]
[null,null,"Commission de distribution - EST",null,null,null,0.3,0,0,{"$f":"J52*-G54","v":0}]
[null,null,"Frais de commercialisation",null,null,null,null,0,0,0]
[null,null,"Cotisations et taxes",null,null,null,null,0,0,0]
[null,null,"Minimum garanti",null,null,null,0,0,0,{"$f":"-G57","v":0},null,null,"Le cas échéant, compléter en case G le minimum garanti (en positif)"]
[null,null,"Recette nette part producteur VOD France (après MG)",null,null,null,null,0,0,{"$f":"SUM(J51:J57)","v":0}]
[null,null,null,null,null,null,null,null,null,null,null,null,"En cas de MG crossé, ajouter une ligne somme des RNPP crossés et MG crossés puis adpater les décomptes en conséquence"]
[null,"4/ EXPLOITATION TV FRANCE",null,null,null,null,"[DISTRIBUTEUR]"]
[null,null,"[Chaîne]",null,null,null,null,0,{"$f":"J61-H61","v":0},0,null,null,"Indiquer le montant de la pré-vente en colonne J"]
[null,null,"Recette brute prévente(s) TV France",null,null,null,null,0,{"$f":"J62-H62","v":0},{"$f":"SUM(J61:J61)","v":0},null,null,"Y compris catch-up"]
[]
[null,null,"[Chaîne]",null,null,null,0,0,{"$f":"J64-H64","v":0},0,null,null,"Indiquer le montant de la vente en colonne G, et le montant total encaissé en colonne J"]
[null,null,"Recette brute ventes > 50k€",null,null,null,null,0,0,{"$f":"+SUM(J64:J64)","v":0},null,null,"Montant des ventes pour la commission à adapter le cas échéant"]
[null,null,"[Chaîne]",null,null,null,0,0,0,0,null,null,"Indiquer le montant de la vente en colonne G, et le montant total encaissé en colonne J"]
[null,null,"Recette brute ventes < 50k€",null,null,null,null,0,0,{"$f":"+SUM(J66:J66)","v":0},null,null,"Montant des ventes pour la commission à adapter le cas échéant"]
[null,null,"Commission de distribution ventes > 50k€",null,null,null,0.1,0,0,{"$f":"+J65*-G68","v":0}]
[null,null,"Commission de distribution ventes < 50k€",null,null,null,0.15,0,0,{"$f":"J67*-G69","v":0}]
[null,null,"Frais de commercialisation",null,null,null,null,0,0,0]
[null,null,"Cotisations et taxes",null,null,null,null,0,0,0]
[null,null,"Recette nette part producteur TV France",null,null,null,null,0,0,{"$f":"SUM(J65,J67,J68:J71)","v":0}]
[]
[null,"5/ EXPLOITATION SVOD FRANCE",null,null,null,null,"[DISTRIBUTEUR]"]
[null,null,"[Plateforme]",null,null,null,null,0,{"$f":"J75-H75","v":0},0,null,null,"Indiquer le montant de la pré-vente en colonne J"]
[null,null,"Recette brute prévente(s) SVOD France",null,null,null,null,0,{"$f":"J76-H76","v":0},{"$f":"+SUM(J75:J75)","v":0},null,null,"En cas de vente multi-territoires, indiquer uniquement la part française"]
[]
[null,null,"[Plateforme]",null,null,null,0,0,0,0,null,null,"Indiquer le montant de la vente en colonne G, et le montant total encaissé en colonne J"]
[null,null,"Recette brute ",null,null,null,null,0,0,{"$f":"+SUM(J78:J78)","v":0}]
[null,null,"Commission de distribution ",null,null,null,0.3,0,0,{"$f":"+J79*-G80","v":0}]
[null,null,"Frais de commercialisation",null,null,null,null,0,0,0]
[null,null,"Cotisations et taxes",null,null,null,null,0,0,0]
[null,null,"Recette nette part producteur SVOD France",null,null,null,null,0,0,{"$f":"SUM(J79:J82)","v":0}]
[]
[null,"6/ EXPLOITATION INTERNATIONALE",null,null,null,null,"[DISTRIBUTEUR]",null,null,null,null,null,"En cas de coproduction franco-étrangére, le montant de la participation du coproducteur est à considérer comme une RNPP forfaitaire"]
[null,null,"Recette brute ",null,null,null,null,0,{"$f":"J86-H86","v":0},0]
[null,null,"Commission de distribution ",null,null,null,0.25,0,{"$f":"J87-H87","v":0},{"$f":"J86*-G87","v":0}]
[null,null,"Frais de commercialisation",null,null,null,null,0,0,0]
[null,null,"Cotisations et taxes",null,null,null,null,0,0,0]
[null,null,"Minimum garanti",null,null,null,0,0,0,{"$f":"-G90","v":0},null,null,"Le cas échéant, compléter en case G le minimum garanti (en positif)"]
[null,null,"Recette nette part producteur internationale (après MG)",null,null,null,null,0,{"$f":"J91-H91","v":0},{"$f":"SUM(J86:J90)","v":0}]
[]
[null,"7/ EXPLOITATION MERCHANDISING",null,null,null,null,"[DISTRIBUTEUR]",null,null,null,null,null,"En cas de recettes sur d'autres supports spécifiques (merchandising, remake…) ajouter la section correspondante et adapter les décomptes en conséquences"]
[null,null,"Recette brute ",null,null,null,null,0,{"$f":"J94-H94","v":0},0]
[null,null,"Commission de distribution ",null,null,null,0.2,0,{"$f":"J95-H95","v":0},{"$f":"J94*-G95","v":0}]
[null,null,"Frais de commercialisation",null,null,null,null,0,0,0]
[null,null,"Recette nette part producteur merchandising",null,null,null,null,0,0,{"$f":"SUM(J94:J96)","v":0}]
[]
[null,"8/ FONDS DE SOUTIEN PRODUCTEUR"]
[null,null,"Montant généré",null,null,null,null,0,{"$f":"J100-H100","v":0},0]
[null,null,"Franchise réservée au(x) producteur(s) délégué(s)",null,null,null,150000,0,{"$f":"J101-H101","v":0},{"$f":"-MIN(J100,G101)","v":0}]
[null,null,"Base de répartition",null,null,null,null,0,0,{"$f":"SUM(J100:J101)","v":0}]
[]
[]
[null,"AMORTISSEMENT DU COÛT DU FILM"]
[]
[null,"Coût du film certifié",null,null,null,null,0,null,null,null,null,null,"Indiquer le coût du film certifié en négatif"]
[null,null,"Fonds de soutien producteur, (75% après 50.000€)",null,null,null,{"$f":"IF(J100>50000,(J100-50000)*75%,0)","v":0},null,null,null,null,null,"Le montant de soutien financier doit être figé après amortissement"]
[null,null,"Apport forfaitaire coproducteur étranger",null,null,null,0]
[null,null,"Crédit d'impôt cinéma",null,null,null,0]
[null,null,"Aides non remboursables",null,null,null,0]
[null,null,"MG et préventes",null,null,null,{"$f":"+G26+G44+G57+J62+J76+G90","v":0}]
[null,null,"Autres (placement de produits, partenariats…)",null,null,null,0]
[null,null,"Recette nette part producteur (après MG)",null,null,null,{"$f":"(IF(J27>0,J27,0))+(IF(J45>0,J45,0))+(IF(J58>0,J58,0))+(IF(J72>0,J72,0))+(IF(J83>0,J83,0))+(IF(J91>0,J91,0))+(IF(J97>0,J97,0))","v":0}]
[null,null,"Total",null,null,{"$f":"IF(G107+(SUM(G108:G114))>0,\"FILM AMORTI\",\"FILM NON AMORTI\")","v":"FILM NON AMORTI"},{"$f":"SUM(G107:G114)","v":0},null,null,null,null,null,"Si le film est amorti, 2% des RNPP doivent etre versés à l'ADAMI. "]

{"sheet":"Tutoriel","index":2,"n_rows":56,"n_cols":5,"rows_kept":56,"cut":false,"hidden":false,"merged":[]}
[]
[]
[]
[]
[]
[]
[]
[]
[]
[]
[]
[]
[]
[]
[]
[]
[]
[]
[]
[]
[]
[]
[]
[]
[]
[null,"SOMMAIRE"]
[]
[null,"     AVERTISSEMENT – CONDITIONS D’UTILISATION"]
[null,"     PRÉAMBULE : EXCEL VBA"]
[null,"     ÉTAPE 1 : INFORMATIONS DU FILM"]
[null,"     ÉTAPE 2 : LES AYANTS DROIT"]
[null,null,"2.1 Introduction"]
[null,null,"2.2 Ajouter un ayant droit"]
[null,null,null,"2.2.1 Cadre « Informations »"]
[null,null,null,"2.2.2 Cadre « Quotes-parts de recette »"]
[null,null,null,null,"Auteur.e.s et interprètes"]
[null,null,null,null,"Autres ayants droit"]
[null,null,"2.3 Modifier un ayant droit"]
[null,null,"2.4 Supprimer un ayant droit"]
[null,"     ÉTAPE 3 : LES DÉCOMPTES"]
[null,null,"3.1 Ajouter une base de décompte"]
[null,null,"3.2 Présentation des bases de décompte"]
[null,null,null,"3.2.1 Présentation du récapitulatif des droits (page 1)"]
[null,null,null,"3.2.2 Présentation des décomptes ayants droit (page 2 et 3)"]
[null,null,"3.3 Ajuster une base de décompte"]
[null,null,null,"3.3.1 Fonctionnement général"]
[null,null,null,"3.3.2 Exemples pratiques d’ajustement de décompte"]
[null,null,null,null,"Exemple 1. Changement d’une base de calcul"]
[null,null,null,null,"Exemple 2. Crosscolatéralisation entre différents supports de recettes"]
[null,null,null,null,"Exemple 3. Ajout d’un support de recette spécifique"]
[null,null,null,null,"Exemple 4. Ajout d’un autre type de recette"]
[null,null,null,null,"Exemple 5. Changement d’une commission ou du plafond de frais pour un ayant droit."]
[]
[null,"     ÉTAPE 4 : NOUVELLE PÉRIODE"]
[null,"     ÉTAPE 5 : COMPLÉTER LE DÉCOMPTE GÉNÉRAL"]
[null,"     ÉTAPE 6 : EXPORTER LES DÉCOMPTES"]

{"sheet":"Ressources","index":3,"n_rows":0,"n_cols":0,"rows_kept":0,"cut":false,"hidden":false,"merged":[]}

{"sheet":">>>","index":4,"n_rows":0,"n_cols":0,"rows_kept":0,"cut":false,"hidden":false,"merged":[]}

{"sheet":"<<<","index":5,"n_rows":0,"n_cols":0,"rows_kept":0,"cut":false,"hidden":false,"merged":[]}

{"sheet":"Informations film","index":6,"n_rows":11,"n_cols":3,"rows_kept":11,"cut":false,"hidden":false,"merged":[]}
[]
[null,"Titre du film","FILM"]
[null,"Réalisation","[à compléter]"]
[null,"Sortie","jj/mm/aaaa"]
[null,"N°RCA",123456]
[null,"Production","[à compléter]"]
[null,"Adresse","[à compléter]"]
[null,"CP et ville","[à compléter]"]
[null,"Période",{"$f":"'Tableau de bord'!K15","v":"2023-12-31"}]
[null,null,{"$f":"TEXT(C9,\"j.M.aaaa\")","v":"31.12.2023"}]
[null,"N° Répartition",{"$f":"'Tableau de bord'!K14","v":0}]

{"sheet":"Base de données ayants droit","index":7,"n_rows":42,"n_cols":33,"rows_kept":42,"cut":false,"hidden":false,"merged":[]}
["#","NOM","Prénom","Qualité","Agence artistique","Adresse","Code postal et ville","Mail de contact 1","Mail de contact 2","Mail de contact 3","Mail de contact 4","Contrat signé le ","Avenant(s)","MG/investissement","1/ Cinéma FR Commercial","1/ Cinéma FR Non commercial","2/ Vidéo France","3/ VOD France","4/ TV France","Gestion collective","5/ SVOD France","6/ International","7/ Autres exploitations","8/ Auteur et interprètes post-amortissement",null,"8/ FDS","Après récupération QP commune","Après récupération QP FDS","Identifiant",null,4,"AD3","Ne pas modifier"]
[{"$f":"AC2","v":"AD1"},"EXEMPLE 1",null,"Coproducteur",null,"14 boulevard des Capucines","75009 PARIS","exemple1@mail.com","exemple1@mail.fr","exemple1@mail1.com","exemple1@mail1.fr","28/12/1895",true,50000,1,1,2,3,4,false,5,6,7,null,null,8,9,10,"AD1"]
[{"$f":"AC3","v":"AD2"},"EXEMPLE 2",null,"Auteur.e scénariste","Etoile","Sunset Boulevard","75009 Paris","exemple2@mail.com","exemple2@mail.fr","exemple2@mail2.com","exemple2@mail2.fr","18/04/1951",true,10000,1,1,2,3,4,false,5,6,7,8,null,null,null,null,"AD2"]
[0]
[0]
[0]
[0]
[0]
[0]
[0]
[0]
[0]
[0]
[0]
[0]
[0]
[0]
[0]
[0]
[0]
[0]
[0]
[0]
[0]
[0]
[0]
[0]
[0]
[0]
[0]
[0]
[0]
[0]
[0]
[0]
[0]
[0]
[0]
[0]
[0]
[0]
[0]

{"sheet":"Matrice décompte auteur.e","index":8,"n_rows":194,"n_cols":21,"rows_kept":194,"cut":false,"hidden":false,"merged":[[11,1,11,9],[12,1,12,9],[13,1,13,9],[1,1,1,4],[2,1,2,4],[3,1,3,4],[4,1,4,4]]}
[]
[null,"Expéditeur ",null,null,null,null,null,null,"Destinataire"]
[null,{"$f":"'Informations film'!C6","v":"[à compléter]"},null,null,null,null,null,null,{"$f":"N3&\" \"&+VLOOKUP($N$3,'Base de données ayants droit'!B:Y,2,FALSE)","v":"Exemple 2 "},null,null,null,"Ayant droit ","Exemple 2"]
[null,{"$f":"'Informations film'!C7","v":"[à compléter]"},null,null,null,null,null,null,{"$f":"+VLOOKUP($N$3,'Base de données ayants droit'!B:Y,5,FALSE)","v":"Sunset Boulevard"},null,null,null,"Ne pas modifier cette cellule"]
[null,{"$f":"'Informations film'!C8","v":"[à compléter]"},null,null,null,null,null,null,{"$f":"+VLOOKUP($N$3,'Base de données ayants droit'!B:Y,6,FALSE)","v":"75009 Paris"}]
[]
[null,{"$f":"'Informations film'!C2","v":"FILM"},null,null,null,null,null,{"$f":"\"DÉCOMPTE N°\"&'Informations film'!C11","v":"DÉCOMPTE N°0"}]
[null,{"$f":"\"Sortie France : \"&'Informations film'!C4","v":"Sortie France : jj/mm/aaaa"},null,null,null,null,null,{"$f":"\"Arrété au \"&TEXT('Informations film'!C9,\"jj/mm/aaaa\")","v":"Arrété au 31/12/2023"}]
[null,{"$f":"\"Réalisation : \"&'Informations film'!C3","v":"Réalisation : [à compléter]"}]
[null,{"$f":"\"N° RCA : \"&'Informations film'!C5","v":"N° RCA : 123456"}]
[]
[null,{"$f":"+N3&\" \"&VLOOKUP(N3,'Base de données ayants droit'!B:Y,2, FALSE)","v":"Exemple 2 "}]
[null,{"$f":"\"Contrat \"&VLOOKUP(N3,'Base de données ayants droit'!B:Y,3,FALSE)","v":"Contrat Auteur.e scénariste"}]
[null,{"$f":"\"Signé en date du \"&TEXT(VLOOKUP(N3,'Base de données ayants droit'!B:W,11,FALSE),\"jj/mm/aa\")&IF(VLOOKUP(N3,'Base de données ayants droit'!B:W,12,FALSE)=TRUE,\" et son/ses avenant(s)\",\"\")","v":"Signé en date du 18/04/51 et son/ses avenant(s)"}]
[]
[null,"RÉMUNÉRATION PROPORTIONNELLE",null,null,null,null,null,"BASE","%","QP"]
[]
[null,"1/ EXPLOITATION CINEMA France"]
[null,null,"Secteur commercial - Prix payé par le public net de TVA et TSA",null,null,null,null,{"$f":"J88","v":0},{"$f":"+VLOOKUP($N$3,'Base de données ayants droit'!B:Y,14,FALSE)&\"%\"","v":"1%"},{"$f":"H19*I19","v":0}]
[null,null,"Secteur non commercial - Recette nette part producteur",null,null,null,null,{"$f":"J99","v":0},{"$f":"+VLOOKUP($N$3,'Base de données ayants droit'!B:Y,15,FALSE)&\"%\"","v":"1%"},{"$f":"H20*I20","v":0}]
[]
[null,"2/ EXPLOITATION VIDEO France"]
[null,null,"CA brut éditeur majoré d'un coefficient correcteur ",null,null,null,null,{"$f":"IF(J107>0,J107,0)","v":0},{"$f":"+VLOOKUP($N$3,'Base de données ayants droit'!B:Y,16,FALSE)&\"%\"","v":"2%"},{"$f":"H23*I23","v":0},null,null,"Le cas échéant, modifier les bases de recette pour correspondre aux contrats d'auteur.e et au décompte général"]
[]
[null,"3/ EXPLOITATION VOD France"]
[null,null,"Recette nette part producteur (y.c. MG eventuel)",null,null,null,null,{"$f":"IF(J133>0,J133+G132,G132)","v":0},{"$f":"+VLOOKUP($N$3,'Base de données ayants droit'!B:Y,17,FALSE)&\"%\"","v":"3%"},{"$f":"H26*I26","v":0}]
[]
[null,"4/ EXPLOITATION TV France",null,null,null,null,{"$f":"+IF(VLOOKUP($N$3,'Base de données ayants droit'!B:Y,19,FALSE)=TRUE,\"Gestion collective\",\"\")","v":""}]
[null,null,"Recette nette part producteur (y.c. prévente.s eventuelle.s)",null,null,null,null,{"$f":"(IF(J147>0,J147,0))+J137","v":0},{"$f":"IF(G28=\"Gestion collective\",0,+VLOOKUP($N$3,'Base de données ayants droit'!B:Y,18,FALSE)&\"%\")","v":"4%"},{"$f":"H29*I29","v":0}]
[]
[null,"5/ EXPLOITATION SVOD France"]
[null,null,"Recette nette part producteur (y.c. prévente.s eventuelle.s)",null,null,null,null,{"$f":"(IF(J158>0,J158,0))+J151","v":0},{"$f":"+VLOOKUP($N$3,'Base de données ayants droit'!B:Y,20,FALSE)&\"%\"","v":"5%"},{"$f":"H32*I32","v":0}]
[]
[null,"6/ EXPLOITATION INTERNATIONALE"]
[null,null,"Recette nette part producteur forfaitaire en cas de coproduction franco-étrangère",null,null,null,null,{"$f":"J175","v":0},{"$f":"+VLOOKUP($N$3,'Base de données ayants droit'!B:Y,21,FALSE)&\"%\"","v":"6%"},{"$f":"H35*I35","v":0}]
[null,null,"Recette nette part producteur (y.c. MG eventuel)",null,null,null,null,{"$f":"IF(J173>0,J173+G172,G172)","v":0},{"$f":"+VLOOKUP($N$3,'Base de données ayants droit'!B:Y,21,FALSE)&\"%\"","v":"6%"},{"$f":"H36*I36","v":0},null,null,"En cas de coproduction franco-étrangére, le montant de la participation du coproducteur est à considérer comme une RNPP forfaitaire"]
[]
[null,"7/ AUTRES EXPLOITATIONS"]
[null,null,"Recette nette part producteur",null,null,null,null,{"$f":"IF(J181>0,J181,0)","v":0},{"$f":"+VLOOKUP($N$3,'Base de données ayants droit'!B:Y,22,FALSE)&\"%\"","v":"7%"},{"$f":"H39*I39","v":0}]
[]
[null,"AVANCE/MINIMUM GARANTI",null,null,null,null,null,null,null,{"$f":"-(+VLOOKUP($N$3,'Base de données ayants droit'!B:Y,13,FALSE))","v":-10000}]
[]
[null,"TOTAL",null,null,null,null,null,null,null,{"$f":"SUM(J17:J42)","v":-10000}]
[]
[null,"TOTAL À VERSER",null,null,null,null,null,null,null,{"$f":"IF(J43>0,J43,0)","v":0},null,null,"Ne pas modifier le nom de la cellule \"J48\" = \"TAV\""]
[]
[null,"À DÉDUIRE SITUATION PRÉCEDENTE",null,null,null,null,null,null,null,0,null,null,"Ne pas modifier le nom de la cellule \"J50\" = \"ADSP\""]
[]
[null,"À RECEVOIR SUR LA PÉRIODE",null,null,null,null,null,null,null,{"$f":"J45+J47","v":0}]
[]
[null,null,null,"AUTEUR.E",null,{"$f":"1-F52","v":0.9},{"$f":"+J49*F51","v":0},null,null,null,null,null,"Dans le cas où l'ayant droit n'a pas d'agence artistique, supprimer la ligne"]
[null,null,null,"AGENCE ARTISTIQUE H.T.",null,0.1,{"$f":"+J49*F52","v":0},null,null,null,null,null,"Dans le cas où l'ayant droit n'a pas d'agence artistique, supprimer la ligne"]
[]
[null,null,null,null,null,null,null,null,null,null,null,null,"En cas de rémunération post amortissement, insérer cette section complétée avant \"Total à verser\" et modifier le calcul du total à verser"]
[null,null,null,null,null,null,null,null,null,null,null,null,"RÉMUNÉRATION POST-AMORTISSEMENT",null,null,null,null,null,"BASE","%","QP"]
[]
[null,null,null,null,null,null,null,null,null,null,null,null,"Recette nette part producteur après amortissement",null,null,null,null,null,{"$f":"IF(G194>0,G194,0)","v":0},{"$f":"+VLOOKUP($N$3,'Base de données ayants droit'!B:Y,22,FALSE)&\"%\"","v":"7%"},{"$f":"T57*S57","v":0}]
[]
[null,null,null,null,null,null,null,null,null,null,null,null,"TOTAL",null,null,null,null,null,null,null,{"$f":"U57","v":0}]
[]
[null,null,null,null,null,null,null,null,null,null,null,null,"En cas de rémunération sur les entrées, insérer cette section complétée avant \"Total à verser\" et modifier le calcul du total à verser"]
[null,null,null,null,null,null,null,null,null,null,null,null,"RÉMUNÉRATION SUR LES ENTREES",null,null,null,null,null,"BASE","%","QP"]
[]
[null,null,null,null,null,null,null,null,null,null,null,null,"[conditions de rémunération sur les entrées]",null,null,null,null,null,null,null,{"$f":"S64*T64","v":0}]
[]
[null,null,null,null,null,null,null,null,null,null,null,null,"TOTAL",null,null,null,null,null,null,null,{"$f":"U64","v":0}]
[]
[]
[]
[]
[]
[]
[]
[]
[]
[]
[]
[]
[]
[]
[]
[]
[null,{"$f":"'Informations film'!C2","v":"FILM"},null,null,null,null,null,null,null,{"$f":"TEXT('Informations film'!C9,\"jj/mm/aaaa\")","v":"31/12/2023"}]
[]
[null,null,null,null,null,null,null,{"$f":"+'Décompte général'!H10","v":"ANTÉRIEUR"},{"$f":"+'Décompte général'!I10","v":"PÉRIODE"},{"$f":"+'Décompte général'!J10","v":"CUMUL"},null,null,"Ne pas modifier le nom des cellules \"H73\" = \"ANTÉRIEUR\" et \"J73\" = \"CUMUL\""]
[null,{"$f":"+'Décompte général'!B11","v":"1/ EXPLOITATION CINÉMA FRANCE"},null,null,null,null,{"$f":"+'Décompte général'!G11","v":"[DISTRIBUTEUR]"}]
[null,null,{"$f":"+'Décompte général'!C12","v":"Nombre d'entrées encaissées"},null,null,null,{"$f":"+'Décompte général'!G12","v":0}]
[null,null,{"$f":"+'Décompte général'!C13","v":"Prix hors taxes (net de TVA et de TSA) payé par le public "},null,null,null,null,0,{"$f":"J88-H88","v":0},{"$f":"'Décompte général'!J13","v":0}]
[]
[null,null,{"$f":"+'Décompte général'!C15","v":"Recette brute distributeur secteur commercial"},null,null,null,null,0,{"$f":"J90-H90","v":0},{"$f":"'Décompte général'!J15","v":0}]
[null,null,{"$f":"+'Décompte général'!C16","v":"Commission de distribution secteur commercial"},null,null,null,{"$f":"+'Décompte général'!G16","v":0.25},0,0,{"$f":"J90*-G91","v":0}]
[null,null,{"$f":"+'Décompte général'!C17","v":"Frais de commercialisation"},null,null,null,null,0,0,{"$f":"'Décompte général'!J17","v":0}]
[null,null,{"$f":"+'Décompte général'!C18","v":"Cotisations et taxes"},null,null,null,null,0,0,{"$f":"'Décompte général'!J18","v":0}]
[null,null,{"$f":"+'Décompte général'!C19","v":"Recette nette part producteur cinéma France secteur commercial"},null,null,null,null,0,0,{"$f":"SUM(J90:J93)","v":0}]
[]
[null,null,{"$f":"+'Décompte général'!C21","v":"Recette brute distributeur secteur non commercial"},null,null,null,null,0,{"$f":"J96-H96","v":0},{"$f":"'Décompte général'!J21","v":0}]
[null,null,{"$f":"+'Décompte général'!C22","v":"Commission de distribution secteur non commercial"},null,null,null,{"$f":"+'Décompte général'!G22","v":0.3},0,{"$f":"J97-H97","v":0},{"$f":"J96*-G97","v":0}]
[null,null,{"$f":"+'Décompte général'!C23","v":"Cotisations et taxes"},null,null,null,null,0,0,{"$f":"'Décompte général'!J23","v":0}]
[null,null,{"$f":"+'Décompte général'!C24","v":"Recette nette part producteur cinéma France secteur non commercial"},null,null,null,null,0,0,{"$f":"SUM(J96:J98)","v":0}]
[]
[null,null,{"$f":"+'Décompte général'!C26","v":"Minimum garanti"},null,null,null,{"$f":"'Décompte général'!G26","v":0},0,{"$f":"J101-H101","v":0},{"$f":"-G101","v":0}]
[null,null,{"$f":"+'Décompte général'!C27","v":"Recette nette part producteur cinéma France (après MG)"},null,null,null,null,0,0,{"$f":"SUM(J94,J99,J101)","v":0}]
[]
[null,{"$f":"+'Décompte général'!B29","v":"2/ EXPLOITATION VIDÉO FRANCE"},null,null,null,null,{"$f":"+'Décompte général'!G29","v":"[DISTRIBUTEUR]"}]
[null,null,{"$f":"+'Décompte général'!C30","v":"Chiffre d'affaires brut éditeur HT"},null,null,null,null,0,{"$f":"J105-H105","v":0},{"$f":"+'Décompte général'!J30","v":0}]
[null,null,{"$f":"+'Décompte général'!C31","v":"Coefficient correcteur (multiplicateur) "},null,null,null,{"$f":"+'Décompte général'!G31","v":1.5},0,{"$f":"J106-H106","v":0},{"$f":"+'Décompte général'!J31","v":0}]
[null,null,{"$f":"+'Décompte général'!C32","v":"Base de répartition auteur"},null,null,null,null,0,0,{"$f":"+'Décompte général'!J32","v":0}]
[null,null,null,null,null,null,null,0,0,{"$f":"+'Décompte général'!J33","v":0}]
[null,null,null,null,null,null,{"$f":"+'Décompte général'!G34","v":"Nombre vente"}]
[null,null,{"$f":"+'Décompte général'!C35","v":"Chiffre d'affaires net éditeur HT - Vente directe"},null,null,null,{"$f":"IF('Décompte général'!G35>0,'Décompte général'!G35,\"\")","v":""},0,0,{"$f":"+'Décompte général'!J35","v":0}]
[null,null,{"$f":"+'Décompte général'!C36","v":"Chiffre d'affaires net éditeur HT - Location"},null,null,null,{"$f":"IF('Décompte général'!G36>0,'Décompte général'!G36,\"\")","v":""},0,0,{"$f":"+'Décompte général'!J36","v":0}]
[null,null,{"$f":"+'Décompte général'!C37","v":"Chiffre d'affaires net éditeur HT - Autres circuits"},null,null,null,{"$f":"IF('Décompte général'!G37>0,'Décompte général'!G37,\"\")","v":""},0,0,{"$f":"+'Décompte général'!J37","v":0}]
[null,null,{"$f":"+'Décompte général'!C38","v":"Royalties - Vente directe"},null,null,null,{"$f":"+'Décompte général'!G38","v":0.3},0,0,{"$f":"J110*G113","v":0}]
[null,null,{"$f":"+'Décompte général'!C39","v":"Royalties - Location"},null,null,null,{"$f":"+'Décompte général'!G39","v":0.3},0,0,{"$f":"J111*G114","v":0}]
[null,null,{"$f":"+'Décompte général'!C40","v":"Royalties - Autres circuits"},null,null,null,{"$f":"+'Décompte général'!G40","v":0.3},0,0,{"$f":"J112*G115","v":0}]
[null,null,{"$f":"+'Décompte général'!C41","v":"Provision pour retour"},null,null,null,null,0,0,{"$f":"+'Décompte général'!J41","v":0}]
[null,null,{"$f":"+'Décompte général'!C42","v":"Frais de commercialisation"},null,null,null,null,0,0,{"$f":"+'Décompte général'!J42","v":0}]
[null,null,{"$f":"+'Décompte général'!C43","v":"Cotisations et taxes"},null,null,null,null,0,0,{"$f":"+'Décompte général'!J43","v":0}]
[null,null,{"$f":"+'Décompte général'!C44","v":"Minimum garanti"},null,null,null,{"$f":"+'Décompte général'!G44","v":0},0,0,{"$f":"-G119","v":0}]
[null,null,{"$f":"+'Décompte général'!C45","v":"Recette nette part producteur vidéo France (après MG)"},null,null,null,null,0,{"$f":"J120-H120","v":0},{"$f":"SUM(J113:J119)","v":0}]
[]
[null,{"$f":"+'Décompte général'!B47","v":"3/ EXPLOITATION VOD FRANCE"},null,null,null,null,{"$f":"+'Décompte général'!G47","v":"[DISTRIBUTEUR]"}]
[null,null,{"$f":"+'Décompte général'!C48","v":"Prix HT payé par le public"},null,null,null,null,0,{"$f":"J123-H123","v":0},{"$f":"'Décompte général'!J48","v":0}]
[]
[null,null,null,null,null,null,{"$f":"+'Décompte général'!G50","v":"Nombre acte"}]
[null,null,{"$f":"+'Décompte général'!C51","v":"Recette brute - VOD locative"},null,null,null,{"$f":"IF(+'Décompte général'!G51>0,+'Décompte général'!G51,\"\")","v":""},0,{"$f":"J126-H126","v":0},{"$f":"'Décompte général'!J51","v":0}]
[null,null,{"$f":"+'Décompte général'!C52","v":"Recette brute - Téléchargement définitif (EST)"},null,null,null,{"$f":"IF(+'Décompte général'!G52>0,+'Décompte général'!G52,\"\")","v":""},0,{"$f":"J127-H127","v":0},{"$f":"'Décompte général'!J52","v":0}]
[null,null,{"$f":"+'Décompte général'!C53","v":"Commission de distribution - VOD locative"},null,null,null,{"$f":"+'Décompte général'!G53","v":0.3},0,0,{"$f":"J126*-G128","v":0}]
[null,null,{"$f":"+'Décompte général'!C54","v":"Commission de distribution - EST"},null,null,null,{"$f":"+'Décompte général'!G54","v":0.3},0,0,{"$f":"J127*-G129","v":0}]
[null,null,{"$f":"+'Décompte général'!C55","v":"Frais de commercialisation"},null,null,null,null,0,0,{"$f":"'Décompte général'!J55","v":0}]
[null,null,{"$f":"+'Décompte général'!C56","v":"Cotisations et taxes"},null,null,null,null,0,0,{"$f":"'Décompte général'!J56","v":0}]
[null,null,{"$f":"+'Décompte général'!C57","v":"Minimum garanti"},null,null,null,{"$f":"+'Décompte général'!G57","v":0},0,0,{"$f":"-G132","v":0}]
[null,null,{"$f":"+'Décompte général'!C58","v":"Recette nette part producteur VOD France (après MG)"},null,null,null,null,0,0,{"$f":"SUM(J126:J132)","v":0}]
[]
[null,{"$f":"+'Décompte général'!B60","v":"4/ EXPLOITATION TV FRANCE"},null,null,null,null,{"$f":"+'Décompte général'!G60","v":"[DISTRIBUTEUR]"}]
[null,null,{"$f":"+'Décompte général'!C61","v":"[Chaîne]"},null,null,null,null,0,{"$f":"J136-H136","v":0},{"$f":"'Décompte général'!J61","v":0}]
[null,null,{"$f":"+'Décompte général'!C62","v":"Recette brute prévente(s) TV France"},null,null,null,null,0,{"$f":"J137-H137","v":0},{"$f":"SUM(J136)","v":0}]
[]
[null,null,{"$f":"+'Décompte général'!C64","v":"[Chaîne]"},null,null,null,{"$f":"+'Décompte général'!G64","v":0},0,0,{"$f":"'Décompte général'!J64","v":0}]
[null,null,{"$f":"+'Décompte général'!C65","v":"Recette brute ventes > 50k€"},null,null,null,null,0,0,{"$f":"'Décompte général'!J65","v":0}]
[null,null,{"$f":"+'Décompte général'!C66","v":"[Chaîne]"},null,null,null,{"$f":"+'Décompte général'!G66","v":0},0,0,{"$f":"'Décompte général'!J66","v":0}]
[null,null,{"$f":"+'Décompte général'!C67","v":"Recette brute ventes < 50k€"},null,null,null,null,0,0,{"$f":"'Décompte général'!J67","v":0}]
[null,null,{"$f":"+'Décompte général'!C68","v":"Commission de distribution ventes > 50k€"},null,null,null,{"$f":"+'Décompte général'!G68","v":0.1},0,0,{"$f":"J140*-G143","v":0}]
[null,null,{"$f":"+'Décompte général'!C69","v":"Commission de distribution ventes < 50k€"},null,null,null,{"$f":"+'Décompte général'!G69","v":0.15},0,0,{"$f":"J142*-G144","v":0}]
[null,null,{"$f":"+'Décompte général'!C70","v":"Frais de commercialisation"},null,null,null,null,0,0,{"$f":"'Décompte général'!J70","v":0}]
[null,null,{"$f":"+'Décompte général'!C71","v":"Cotisations et taxes"},null,null,null,null,0,0,{"$f":"'Décompte général'!J71","v":0}]
[null,null,{"$f":"+'Décompte général'!C72","v":"Recette nette part producteur TV France"},null,null,null,null,0,0,{"$f":"SUM(J140,J142,J143:J146)","v":0}]
[]
[null,{"$f":"+'Décompte général'!B74","v":"5/ EXPLOITATION SVOD FRANCE"},null,null,null,null,{"$f":"+'Décompte général'!G74","v":"[DISTRIBUTEUR]"}]
[null,null,{"$f":"+'Décompte général'!C75","v":"[Plateforme]"},null,null,null,null,0,{"$f":"J150-H150","v":0},{"$f":"'Décompte général'!J75","v":0}]
[null,null,{"$f":"+'Décompte général'!C76","v":"Recette brute prévente(s) SVOD France"},null,null,null,null,0,{"$f":"J151-H151","v":0},{"$f":"SUM(J150)","v":0}]
[]
[null,null,{"$f":"+'Décompte général'!C78","v":"[Plateforme]"},null,null,null,null,0,0,{"$f":"'Décompte général'!J78","v":0}]
[null,null,{"$f":"+'Décompte général'!C79","v":"Recette brute "},null,null,null,null,0,0,{"$f":"SUM(J153)","v":0}]
[null,null,{"$f":"+'Décompte général'!C80","v":"Commission de distribution "},null,null,null,{"$f":"+'Décompte général'!G80","v":0.3},0,0,{"$f":"J154*-G155","v":0}]
[null,null,{"$f":"+'Décompte général'!C81","v":"Frais de commercialisation"},null,null,null,null,0,0,{"$f":"'Décompte général'!J81","v":0}]
[null,null,{"$f":"+'Décompte général'!C82","v":"Cotisations et taxes"},null,null,null,null,0,0,{"$f":"'Décompte général'!J82","v":0}]
[null,null,{"$f":"+'Décompte général'!C83","v":"Recette nette part producteur SVOD France"},null,null,null,null,0,0,{"$f":"SUM(J154:J157)","v":0}]
[]
[]
[]
[]
[]
[]
[]
[]
[null,{"$f":"+'Décompte général'!B85","v":"6/ EXPLOITATION INTERNATIONALE"},null,null,null,null,{"$f":"+'Décompte général'!G85","v":"[DISTRIBUTEUR]"}]
[null,null,{"$f":"+'Décompte général'!C86","v":"Recette brute "},null,null,null,null,0,{"$f":"J168-H168","v":0},{"$f":"'Décompte général'!J86","v":0}]
[null,null,{"$f":"+'Décompte général'!C87","v":"Commission de distribution "},null,null,null,{"$f":"+'Décompte général'!G87","v":0.25},0,{"$f":"J169-H169","v":0},{"$f":"J168*-G169","v":0}]
[null,null,{"$f":"+'Décompte général'!C88","v":"Frais de commercialisation"},null,null,null,null,0,0,{"$f":"'Décompte général'!J88","v":0}]
[null,null,{"$f":"+'Décompte général'!C89","v":"Cotisations et taxes"},null,null,null,null,0,0,{"$f":"'Décompte général'!J89","v":0}]
[null,null,{"$f":"+'Décompte général'!C90","v":"Minimum garanti"},null,null,null,{"$f":"+'Décompte général'!G90","v":0},0,0,{"$f":"-G172","v":0}]
[null,null,{"$f":"+'Décompte général'!C91","v":"Recette nette part producteur internationale (après MG)"},null,null,null,null,0,0,{"$f":"SUM(J168:J172)","v":0}]
[]
[null,null,"Apport du coproducteur étranger considéré en RNPP forfaitaire",null,null,null,null,0,{"$f":"J175-H175","v":0},{"$f":"'Décompte général'!G109","v":0},null,null,"En cas de coproduction franco-étrangére, le montant de la participation du coproducteur est à considérer comme une RNPP forfaitaire"]
[null,null,null,null,null,null,null,null,null,null,null,null,"Dans ce cas, la part de recette du coproducteur étranger est à déduire des RNPP-A sur l'international"]
[null,{"$f":"+'Décompte général'!B93","v":"7/ EXPLOITATION MERCHANDISING"},null,null,null,null,{"$f":"+'Décompte général'!G93","v":"[DISTRIBUTEUR]"}]
[null,null,{"$f":"+'Décompte général'!C94","v":"Recette brute "},null,null,null,null,0,{"$f":"J178-H178","v":0},{"$f":"'Décompte général'!J94","v":0}]
[null,null,{"$f":"+'Décompte général'!C95","v":"Commission de distribution "},null,null,null,{"$f":"+'Décompte général'!G95","v":0.2},0,{"$f":"J179-H179","v":0},{"$f":"J178*-G179","v":0}]
[null,null,{"$f":"+'Décompte général'!C96","v":"Frais de commercialisation"},null,null,null,null,0,0,{"$f":"'Décompte général'!J96","v":0}]
[null,null,{"$f":"+'Décompte général'!C97","v":"Recette nette part producteur merchandising"},null,null,null,null,0,0,{"$f":"SUM(J178:J180)","v":0}]
[]
[]
[null,{"$f":"+'Décompte général'!B105","v":"AMORTISSEMENT DU COÛT DU FILM"}]
[]
[null,{"$f":"+'Décompte général'!B107","v":"Coût du film certifié"},null,null,null,null,{"$f":"+'Décompte général'!G107","v":0}]
[null,null,{"$f":"+'Décompte général'!C108","v":"Fonds de soutien producteur, (75% après 50.000€)"},null,null,null,{"$f":"+'Décompte général'!G108","v":0},null,null,null,null,null,"Le montant de soutien financier doit être figé après amortissement"]
[null,null,{"$f":"+'Décompte général'!C109","v":"Apport forfaitaire coproducteur étranger"},null,null,null,{"$f":"+'Décompte général'!G109","v":0}]
[null,null,{"$f":"+'Décompte général'!C110","v":"Crédit d'impôt cinéma"},null,null,null,{"$f":"+'Décompte général'!G110","v":0}]
[null,null,{"$f":"+'Décompte général'!C111","v":"Aides non remboursables"},null,null,null,{"$f":"+'Décompte général'!G111","v":0}]
[null,null,{"$f":"+'Décompte général'!C112","v":"MG et préventes"},null,null,null,{"$f":"+'Décompte général'!G112","v":0}]
[null,null,{"$f":"+'Décompte général'!C113","v":"Autres (placement de produits, partenariats…)"},null,null,null,{"$f":"+'Décompte général'!G113","v":0}]
[null,null,{"$f":"+'Décompte général'!C114","v":"Recette nette part producteur (après MG)"},null,null,null,{"$f":"+'Décompte général'!G114","v":0}]
[null,null,{"$f":"+'Décompte général'!C115","v":"Total"},null,null,{"$f":"+'Décompte général'!F115","v":"FILM NON AMORTI"},{"$f":"+'Décompte général'!G115","v":0}]

{"sheet":"Matrice décompte interpréte","index":9,"n_rows":185,"n_cols":21,"rows_kept":185,"cut":false,"hidden":false,"merged":[[11,1,11,9],[12,1,12,9],[13,1,13,9],[1,1,1,4],[2,1,2,4],[3,1,3,4],[4,1,4,4]]}
[]
[null,"Expéditeur ",null,null,null,null,null,null,"Destinataire"]
[null,{"$f":"'Informations film'!C6","v":"[à compléter]"},null,null,null,null,null,null,{"$f":"N3&\" \"&+VLOOKUP($N$3,'Base de données ayants droit'!B:Y,2,FALSE)","v":{"$error":"#N/A"}},null,null,null,"Ayant droit "]
[null,{"$f":"'Informations film'!C7","v":"[à compléter]"},null,null,null,null,null,null,{"$f":"+VLOOKUP($N$3,'Base de données ayants droit'!B:Y,5,FALSE)","v":{"$error":"#N/A"}},null,null,null,"Ne pas modifier cette cellule"]
[null,{"$f":"'Informations film'!C8","v":"[à compléter]"},null,null,null,null,null,null,{"$f":"+VLOOKUP($N$3,'Base de données ayants droit'!B:Y,6,FALSE)","v":{"$error":"#N/A"}}]
[]
[null,{"$f":"'Informations film'!C2","v":"FILM"},null,null,null,null,null,{"$f":"\"DÉCOMPTE N°\"&'Informations film'!C11","v":"DÉCOMPTE N°0"}]
[null,{"$f":"\"Sortie France : \"&'Informations film'!C4","v":"Sortie France : jj/mm/aaaa"},null,null,null,null,null,{"$f":"\"Arrété au \"&TEXT('Informations film'!C9,\"jj/mm/aaaa\")","v":"Arrété au 31/12/2023"}]
[null,{"$f":"\"Réalisation : \"&'Informations film'!C3","v":"Réalisation : [à compléter]"}]
[null,{"$f":"\"N° RCA : \"&'Informations film'!C5","v":"N° RCA : 123456"}]
[]
[null,{"$f":"+N3&\" \"&VLOOKUP(N3,'Base de données ayants droit'!B:Y,2, FALSE)","v":{"$error":"#N/A"}}]
[null,{"$f":"\"Contrat \"&VLOOKUP(N3,'Base de données ayants droit'!B:Y,3,FALSE)","v":{"$error":"#N/A"}}]
[null,{"$f":"\"Signé en date du \"&TEXT(VLOOKUP(N3,'Base de données ayants droit'!B:W,11,FALSE),\"jj/mm/aa\")&IF(VLOOKUP(N3,'Base de données ayants droit'!B:W,12,FALSE)=TRUE,\" et son/ses avenant(s)\",\"\")","v":{"$error":"#N/A"}}]
[]
[null,"REDEVANCE",null,null,null,null,null,"BASE","%","QP"]
[]
[null,"1/ EXPLOITATION CINEMA France"]
[null,null,"Recettes nette part producteur  (y.c. MG éventuel)",null,null,null,null,{"$f":"IF(J101>0,J101+G100,G100)","v":0},{"$f":"+VLOOKUP($N$3,'Base de données ayants droit'!B:Y,14,FALSE)&\"%\"","v":{"$error":"#N/A"}},{"$f":"H19*I19","v":{"$error":"#N/A"}}]
[]
[null,"2/ EXPLOITATION VIDEO France"]
[null,null,"Recettes nette part producteur (y.c. MG éventuel)",null,null,null,null,{"$f":"IF(J115>0,J115+G114,G114)","v":0},{"$f":"+VLOOKUP($N$3,'Base de données ayants droit'!B:Y,16,FALSE)&\"%\"","v":{"$error":"#N/A"}},{"$f":"H22*I22","v":{"$error":"#N/A"}}]
[]
[null,"3/ EXPLOITATION VOD France"]
[null,null,"Recette nette part producteur (y.c. MG éventuel)",null,null,null,null,{"$f":"IF(J126>0,J126+G125,G125)","v":0},{"$f":"+VLOOKUP($N$3,'Base de données ayants droit'!B:Y,17,FALSE)&\"%\"","v":{"$error":"#N/A"}},{"$f":"H25*I25","v":{"$error":"#N/A"}}]
[]
[null,"4/ EXPLOITATION TV France",null,null,null,null,{"$f":"+IF(VLOOKUP($N$3,'Base de données ayants droit'!B:Y,19,FALSE)=TRUE,\"Gestion collective\",\"\")","v":{"$error":"#N/A"}}]
[null,null,"Recette nette part producteur (y.c. prévente.s eventuelle.s)",null,null,null,null,{"$f":"(IF(J140>0,J140,0))+J130","v":0},{"$f":"IF(G27=\"Gestion collective\",0,+VLOOKUP($N$3,'Base de données ayants droit'!B:Y,18,FALSE)&\"%\")","v":{"$error":"#N/A"}},{"$f":"H28*I28","v":{"$error":"#N/A"}}]
[]
[null,"5/ EXPLOITATION SVOD France"]
[null,null,"Recette nette part producteur (y.c. prévente.s eventuelle.s)",null,null,null,null,{"$f":"(IF(J151>0,J151,0))+J144","v":0},{"$f":"+VLOOKUP($N$3,'Base de données ayants droit'!B:Y,20,FALSE)&\"%\"","v":{"$error":"#N/A"}},{"$f":"H31*I31","v":{"$error":"#N/A"}}]
[]
[null,"6/ EXPLOITATION INTERNATIONALE"]
[null,null,"Recette nette part producteur forfaitaire en cas de coproduction franco-étrangère",null,null,null,null,{"$f":"J162","v":0},{"$f":"+VLOOKUP($N$3,'Base de données ayants droit'!B:Y,21,FALSE)&\"%\"","v":{"$error":"#N/A"}},{"$f":"H34*I34","v":{"$error":"#N/A"}}]
[null,null,"Recette nette part producteur (y.c. MG éventuel)",null,null,null,null,{"$f":"IF(J160>0,J160+G159,G159)","v":0},{"$f":"+VLOOKUP($N$3,'Base de données ayants droit'!B:Y,21,FALSE)&\"%\"","v":{"$error":"#N/A"}},{"$f":"H35*I35","v":{"$error":"#N/A"}},null,null,"En cas de coproduction franco-étrangére, le montant de la participation du coproducteur est à considérer comme une RNPP forfaitaire"]
[null,null,null,null,null,null,null,null,null,null,null,null,"Dans ce cas, la part de recette du coproducteur étranger est à déduire des RNPP-A sur l'international"]
[null,"7/ AUTRES EXPLOITATIONS"]
[null,null,"Recette nette part producteur",null,null,null,null,{"$f":"+'Décompte général'!J97","v":0},{"$f":"+VLOOKUP($N$3,'Base de données ayants droit'!B:Y,22,FALSE)&\"%\"","v":{"$error":"#N/A"}},{"$f":"H38*I38","v":{"$error":"#N/A"}}]
[]
[null,"AVANCE/MINIMUM GARANTI",null,null,null,null,null,null,null,{"$f":"-(+VLOOKUP($N$3,'Base de données ayants droit'!B:Y,13,FALSE))","v":{"$error":"#N/A"}}]
[]
[null,"TOTAL",null,null,null,null,null,null,null,{"$f":"SUM(J17:J41)","v":{"$error":"#N/A"}}]
[]
[null,"TOTAL À VERSER",null,null,null,null,null,null,null,{"$f":"IF(J42>0,J42,0)","v":{"$error":"#N/A"}},null,null,"Ne pas modifier le nom de la cellule \"J48\" = \"TAV\""]
[]
[null,"À DÉDUIRE SITUATION PRÉCEDENTE",null,null,null,null,null,null,null,{"$error":"#N/A"},null,null,"Ne pas modifier le nom de la cellule \"J50\" = \"ADSP\""]
[]
[null,"À RECEVOIR SUR LA PÉRIODE",null,null,null,null,null,null,null,{"$f":"J44+J46","v":{"$error":"#N/A"}}]
[]
[null,null,null,"AUTEUR.E",null,{"$f":"1-F51","v":0.9},{"$f":"+J48*F50","v":{"$error":"#N/A"}},null,null,null,null,null,"Dans le cas où l'ayant droit n'a pas d'agence artistique, supprimer la ligne"]
[null,null,null,"AGENCE ARTISTIQUE H.T.",null,0.1,{"$f":"+J48*F51","v":{"$error":"#N/A"}},null,null,null,null,null,"Dans le cas où l'ayant droit n'a pas d'agence artistique, supprimer la ligne"]
[]
[null,null,null,null,null,null,null,null,null,null,null,null,"En cas de rémunération post amortissement, insérer cette section complétée avant \"Total à verser\" et modifier le calcul du total à verser"]
[null,null,null,null,null,null,null,null,null,null,null,null,"RÉMUNÉRATION POST-AMORTISSEMENT",null,null,null,null,null,"BASE","%","QP"]
[]
[null,null,null,null,null,null,null,null,null,null,null,null,"Recette nette part producteur après amortissement",null,null,null,null,null,{"$f":"IF(G185>0,G185,0)","v":0},{"$f":"+VLOOKUP($N$3,'Base de données ayants droit'!B:Y,23,FALSE)&\"%\"","v":{"$error":"#N/A"}},{"$f":"S56*T56","v":{"$error":"#N/A"}}]
[]
[null,null,null,null,null,null,null,null,null,null,null,null,"TOTAL",null,null,null,null,null,null,null,{"$f":"U56","v":{"$error":"#N/A"}}]
[]
[null,null,null,null,null,null,null,null,null,null,null,null,"En cas de rémunération sur les entrées, insérer cette section complétée avant \"Total à verser\" et modifier le calcul du total à verser"]
[null,null,null,null,null,null,null,null,null,null,null,null,"RÉMUNÉRATION SUR LES ENTREES",null,null,null,null,null,"BASE","%","QP"]
[]
[null,null,null,null,null,null,null,null,null,null,null,null,"[conditions de rémunération sur les entrées]",null,null,null,null,null,null,null,{"$f":"S63*T63","v":0}]
[]
[null,null,null,null,null,null,null,null,null,null,null,null,"TOTAL",null,null,null,null,null,null,null,{"$f":"U63","v":0}]
[]
[]
[]
[]
[]
[]
[]
[]
[]
[]
[]
[]
[]
[]
[]
[]
[]
[null,{"$f":"'Informations film'!C2","v":"FILM"},null,null,null,null,null,null,null,{"$f":"TEXT('Informations film'!C9,\"jj/mm/aaaa\")","v":"31/12/2023"}]
[]
[null,null,null,null,null,null,null,{"$f":"+'Décompte général'!H10","v":"ANTÉRIEUR"},{"$f":"+'Décompte général'!I10","v":"PÉRIODE"},{"$f":"+'Décompte général'!J10","v":"CUMUL"},null,null,"Ne pas modifier le nom des cellules \"H75\" = \"ANTÉRIEUR\" et \"J75\" = \"CUMUL\""]
[null,{"$f":"+'Décompte général'!B11","v":"1/ EXPLOITATION CINÉMA FRANCE"},null,null,null,null,{"$f":"+'Décompte général'!G11","v":"[DISTRIBUTEUR]"}]
[null,null,{"$f":"+'Décompte général'!C12","v":"Nombre d'entrées encaissées"},null,null,null,{"$f":"+'Décompte général'!G12","v":0}]
[]
[null,null,{"$f":"+'Décompte général'!C15","v":"Recette brute distributeur secteur commercial"},null,null,null,null,0,{"$f":"J89-H89","v":0},{"$f":"'Décompte général'!J15","v":0}]
[null,null,{"$f":"+'Décompte général'!C16","v":"Commission de distribution secteur commercial"},null,null,null,{"$f":"+'Décompte général'!G16","v":0.25},0,{"$f":"J90-H90","v":0},{"$f":"J89*-G90","v":0}]
[null,null,{"$f":"+'Décompte général'!C17","v":"Frais de commercialisation"},null,null,null,null,0,0,{"$f":"'Décompte général'!J17","v":0}]
[null,null,{"$f":"+'Décompte général'!C18","v":"Cotisations et taxes"},null,null,null,null,0,0,{"$f":"'Décompte général'!J18","v":0}]
[null,null,{"$f":"+'Décompte général'!C19","v":"Recette nette part producteur cinéma France secteur commercial"},null,null,null,null,0,0,{"$f":"SUM(J89:J92)","v":0}]
[]
[null,null,{"$f":"+'Décompte général'!C21","v":"Recette brute distributeur secteur non commercial"},null,null,null,null,0,0,{"$f":"'Décompte général'!J21","v":0}]
[null,null,{"$f":"+'Décompte général'!C22","v":"Commission de distribution secteur non commercial"},null,null,null,{"$f":"+'Décompte général'!G22","v":0.3},0,0,{"$f":"J95*-G96","v":0}]
[null,null,{"$f":"+'Décompte général'!C23","v":"Cotisations et taxes"},null,null,null,null,0,0,{"$f":"'Décompte général'!J23","v":0}]
[null,null,{"$f":"+'Décompte général'!C24","v":"Recette nette part producteur cinéma France secteur non commercial"},null,null,null,null,0,0,{"$f":"SUM(J95:J97)","v":0}]
[]
[null,null,{"$f":"+'Décompte général'!C26","v":"Minimum garanti"},null,null,null,{"$f":"+'Décompte général'!G26","v":0},0,0,{"$f":"-G100","v":0}]
[null,null,{"$f":"+'Décompte général'!C27","v":"Recette nette part producteur cinéma France (après MG)"},null,null,null,null,0,0,{"$f":"SUM(J93,J98,J100)","v":0}]
[]
[null,{"$f":"+'Décompte général'!B29","v":"2/ EXPLOITATION VIDÉO FRANCE"},null,null,null,null,{"$f":"+'Décompte général'!G29","v":"[DISTRIBUTEUR]"}]
[null,null,null,null,null,null,{"$f":"+'Décompte général'!G34","v":"Nombre vente"}]
[null,null,{"$f":"+'Décompte général'!C35","v":"Chiffre d'affaires net éditeur HT - Vente directe"},null,null,null,{"$f":"IF('Décompte général'!G35>0,'Décompte général'!G35,\"\")","v":""},0,{"$f":"J105-H105","v":0},{"$f":"'Décompte général'!J35","v":0}]
[null,null,{"$f":"+'Décompte général'!C36","v":"Chiffre d'affaires net éditeur HT - Location"},null,null,null,{"$f":"IF('Décompte général'!G36>0,'Décompte général'!G36,\"\")","v":""},0,{"$f":"J106-H106","v":0},{"$f":"'Décompte général'!J36","v":0}]
[null,null,{"$f":"+'Décompte général'!C37","v":"Chiffre d'affaires net éditeur HT - Autres circuits"},null,null,null,{"$f":"IF('Décompte général'!G37>0,'Décompte général'!G37,\"\")","v":""},0,0,{"$f":"'Décompte général'!J37","v":0}]
[null,null,{"$f":"+'Décompte général'!C38","v":"Royalties - Vente directe"},null,null,null,{"$f":"+'Décompte général'!G38","v":0.3},0,0,{"$f":"J105*G108","v":0}]
[null,null,{"$f":"+'Décompte général'!C39","v":"Royalties - Location"},null,null,null,{"$f":"+'Décompte général'!G39","v":0.3},0,0,{"$f":"J106*G109","v":0}]
[null,null,{"$f":"+'Décompte général'!C40","v":"Royalties - Autres circuits"},null,null,null,{"$f":"+'Décompte général'!G40","v":0.3},0,0,{"$f":"J107*G110","v":0}]
[null,null,{"$f":"+'Décompte général'!C41","v":"Provision pour retour"},null,null,null,null,0,0,{"$f":"'Décompte général'!J41","v":0}]
[null,null,{"$f":"+'Décompte général'!C42","v":"Frais de commercialisation"},null,null,null,null,0,0,{"$f":"'Décompte général'!J42","v":0}]
[null,null,{"$f":"+'Décompte général'!C43","v":"Cotisations et taxes"},null,null,null,null,0,0,{"$f":"'Décompte général'!J43","v":0}]
[null,null,{"$f":"+'Décompte général'!C44","v":"Minimum garanti"},null,null,null,{"$f":"+'Décompte général'!G44","v":0},0,0,{"$f":"-G114","v":0}]
[null,null,{"$f":"+'Décompte général'!C45","v":"Recette nette part producteur vidéo France (après MG)"},null,null,null,null,0,0,{"$f":"SUM(J108:J110)+SUM(J111:J114)","v":0}]
[]
[null,{"$f":"+'Décompte général'!B47","v":"3/ EXPLOITATION VOD FRANCE"},null,null,null,null,{"$f":"+'Décompte général'!G47","v":"[DISTRIBUTEUR]"}]
[null,null,null,null,null,null,{"$f":"+'Décompte général'!G50","v":"Nombre acte"}]
[null,null,{"$f":"+'Décompte général'!C51","v":"Recette brute - VOD locative"},null,null,null,{"$f":"IF(+'Décompte général'!G51>0,+'Décompte général'!G51,\"\")","v":""},0,{"$f":"J119-H119","v":0},{"$f":"'Décompte général'!J51","v":0}]
[null,null,{"$f":"+'Décompte général'!C52","v":"Recette brute - Téléchargement définitif (EST)"},null,null,null,{"$f":"IF(+'Décompte général'!G52>0,+'Décompte général'!G52,\"\")","v":""},0,{"$f":"J120-H120","v":0},{"$f":"'Décompte général'!J52","v":0}]
[null,null,{"$f":"+'Décompte général'!C53","v":"Commission de distribution - VOD locative"},null,null,null,{"$f":"+'Décompte général'!G53","v":0.3},0,0,{"$f":"J119*-G121","v":0}]
[null,null,{"$f":"+'Décompte général'!C54","v":"Commission de distribution - EST"},null,null,null,{"$f":"+'Décompte général'!G54","v":0.3},0,0,{"$f":"J120*-G122","v":0}]
[null,null,{"$f":"+'Décompte général'!C55","v":"Frais de commercialisation"},null,null,null,null,0,0,{"$f":"'Décompte général'!J55","v":0}]
[null,null,{"$f":"+'Décompte général'!C56","v":"Cotisations et taxes"},null,null,null,null,0,0,{"$f":"'Décompte général'!J56","v":0}]
[null,null,{"$f":"+'Décompte général'!C57","v":"Minimum garanti"},null,null,null,{"$f":"+'Décompte général'!G57","v":0},0,0,{"$f":"-G125","v":0}]
[null,null,{"$f":"+'Décompte général'!C58","v":"Recette nette part producteur VOD France (après MG)"},null,null,null,null,0,0,{"$f":"SUM(J119:J125)","v":0}]
[]
[null,{"$f":"+'Décompte général'!B60","v":"4/ EXPLOITATION TV FRANCE"},null,null,null,null,{"$f":"+'Décompte général'!G60","v":"[DISTRIBUTEUR]"}]
[null,null,{"$f":"+'Décompte général'!C61","v":"[Chaîne]"},null,null,null,null,0,{"$f":"J129-H129","v":0},{"$f":"'Décompte général'!J61","v":0}]
[null,null,{"$f":"+'Décompte général'!C62","v":"Recette brute prévente(s) TV France"},null,null,null,null,0,{"$f":"J130-H130","v":0},{"$f":"SUM(J129)","v":0}]
[]
[null,null,{"$f":"+'Décompte général'!C64","v":"[Chaîne]"},null,null,null,{"$f":"+'Décompte général'!G64","v":0},0,0,{"$f":"'Décompte général'!J64","v":0}]
[null,null,{"$f":"+'Décompte général'!C65","v":"Recette brute ventes > 50k€"},null,null,null,null,0,0,{"$f":"SUM(J132)","v":0}]
[null,null,{"$f":"+'Décompte général'!C66","v":"[Chaîne]"},null,null,null,{"$f":"+'Décompte général'!G66","v":0},0,0,{"$f":"'Décompte général'!J66","v":0}]
[null,null,{"$f":"+'Décompte général'!C67","v":"Recette brute ventes < 50k€"},null,null,null,null,0,0,{"$f":"SUM(J134)","v":0}]
[null,null,{"$f":"+'Décompte général'!C68","v":"Commission de distribution ventes > 50k€"},null,null,null,{"$f":"+'Décompte général'!G68","v":0.1},0,0,{"$f":"J133*-G136","v":0}]
[null,null,{"$f":"+'Décompte général'!C69","v":"Commission de distribution ventes < 50k€"},null,null,null,{"$f":"+'Décompte général'!G69","v":0.15},0,0,{"$f":"J135*-G137","v":0}]
[null,null,{"$f":"+'Décompte général'!C70","v":"Frais de commercialisation"},null,null,null,null,0,0,{"$f":"'Décompte général'!J70","v":0}]
[null,null,{"$f":"+'Décompte général'!C71","v":"Cotisations et taxes"},null,null,null,null,0,0,{"$f":"'Décompte général'!J71","v":0}]
[null,null,{"$f":"+'Décompte général'!C72","v":"Recette nette part producteur TV France"},null,null,null,null,0,0,{"$f":"SUM(J133,J135,J136:J139)","v":0}]
[]
[null,{"$f":"+'Décompte général'!B74","v":"5/ EXPLOITATION SVOD FRANCE"},null,null,null,null,{"$f":"+'Décompte général'!G74","v":"[DISTRIBUTEUR]"}]
[null,null,{"$f":"+'Décompte général'!C75","v":"[Plateforme]"},null,null,null,null,0,{"$f":"J143-H143","v":0},{"$f":"'Décompte général'!J75","v":0}]
[null,null,{"$f":"+'Décompte général'!C76","v":"Recette brute prévente(s) SVOD France"},null,null,null,null,0,{"$f":"J144-H144","v":0},{"$f":"SUM(J143)","v":0}]
[]
[null,null,{"$f":"+'Décompte général'!C78","v":"[Plateforme]"},null,null,null,null,0,0,{"$f":"'Décompte général'!J78","v":0}]
[null,null,{"$f":"+'Décompte général'!C79","v":"Recette brute "},null,null,null,null,0,0,{"$f":"SUM(J146)","v":0}]
[null,null,{"$f":"+'Décompte général'!C80","v":"Commission de distribution "},null,null,null,{"$f":"+'Décompte général'!G80","v":0.3},0,0,{"$f":"J147*-G148","v":0}]
[null,null,{"$f":"+'Décompte général'!C81","v":"Frais de commercialisation"},null,null,null,null,0,0,{"$f":"'Décompte général'!J81","v":0}]
[null,null,{"$f":"+'Décompte général'!C82","v":"Cotisations et taxes"},null,null,null,null,0,0,{"$f":"'Décompte général'!J82","v":0}]
[null,null,{"$f":"+'Décompte général'!C83","v":"Recette nette part producteur SVOD France"},null,null,null,null,0,0,{"$f":"SUM(J147:J150)","v":0}]
[]
[]
[null,{"$f":"+'Décompte général'!B85","v":"6/ EXPLOITATION INTERNATIONALE"},null,null,null,null,{"$f":"+'Décompte général'!G85","v":"[DISTRIBUTEUR]"}]
[null,null,{"$f":"+'Décompte général'!C86","v":"Recette brute "},null,null,null,null,0,{"$f":"J155-H155","v":0},{"$f":"'Décompte général'!J86","v":0}]
[null,null,{"$f":"+'Décompte général'!C87","v":"Commission de distribution "},null,null,null,{"$f":"+'Décompte général'!G87","v":0.25},0,{"$f":"J156-H156","v":0},{"$f":"J155*-G156","v":0}]
[null,null,{"$f":"+'Décompte général'!C88","v":"Frais de commercialisation"},null,null,null,null,0,0,{"$f":"'Décompte général'!J88","v":0}]
[null,null,{"$f":"+'Décompte général'!C89","v":"Cotisations et taxes"},null,null,null,null,0,0,{"$f":"'Décompte général'!J89","v":0}]
[null,null,{"$f":"+'Décompte général'!C90","v":"Minimum garanti"},null,null,null,{"$f":"+'Décompte général'!G90","v":0},0,0,{"$f":"-G159","v":0}]
[null,null,{"$f":"+'Décompte général'!C91","v":"Recette nette part producteur internationale (après MG)"},null,null,null,null,0,0,{"$f":"SUM(J155:J159)","v":0},null,null,"En cas de coproduction franco-étrangére, le montant de la participation du coproducteur est à considérer comme une RNPP forfaitaire"]
[]
[null,null,"Apport du coproducteur étranger considéré en RNPP forfaitaire",null,null,null,null,0,{"$f":"J162-H162","v":0},{"$f":"'Décompte général'!G96","v":0}]
[]
[]
[]
[]
[]
[null,{"$f":"+'Décompte général'!B93","v":"7/ EXPLOITATION MERCHANDISING"},null,null,null,null,{"$f":"+'Décompte général'!G93","v":"[DISTRIBUTEUR]"}]
[null,null,{"$f":"+'Décompte général'!C94","v":"Recette brute "},null,null,null,null,0,{"$f":"J169-H169","v":0},{"$f":"'Décompte général'!J94","v":0}]
[null,null,{"$f":"+'Décompte général'!C95","v":"Commission de distribution "},null,null,null,{"$f":"+'Décompte général'!G95","v":0.2},0,{"$f":"J170-H170","v":0},{"$f":"J169*-G170","v":0}]
[null,null,{"$f":"+'Décompte général'!C96","v":"Frais de commercialisation"},null,null,null,null,0,0,{"$f":"'Décompte général'!J96","v":0}]
[null,null,{"$f":"+'Décompte général'!C97","v":"Recette nette part producteur merchandising"},null,null,null,null,0,0,{"$f":"SUM(J169:J171)","v":0}]
[]
[]
[null,{"$f":"+'Décompte général'!B105","v":"AMORTISSEMENT DU COÛT DU FILM"}]
[]
[null,{"$f":"'Décompte général'!B107","v":"Coût du film certifié"},null,null,null,null,{"$f":"+'Décompte général'!G107","v":0}]
[null,null,{"$f":"'Décompte général'!C108","v":"Fonds de soutien producteur, (75% après 50.000€)"},null,null,null,{"$f":"'Décompte général'!G108","v":0},null,null,null,null,null,"Le montant de soutien financier doit être figé après amortissement"]
[null,null,{"$f":"'Décompte général'!C109","v":"Apport forfaitaire coproducteur étranger"},null,null,null,{"$f":"'Décompte général'!G109","v":0}]
[null,null,{"$f":"'Décompte général'!C110","v":"Crédit d'impôt cinéma"},null,null,null,{"$f":"'Décompte général'!G110","v":0}]
[null,null,{"$f":"'Décompte général'!C111","v":"Aides non remboursables"},null,null,null,{"$f":"+'Décompte général'!G111","v":0}]
[null,null,{"$f":"'Décompte général'!C112","v":"MG et préventes"},null,null,null,{"$f":"+'Décompte général'!G112","v":0}]
[null,null,{"$f":"'Décompte général'!C113","v":"Autres (placement de produits, partenariats…)"},null,null,null,{"$f":"+'Décompte général'!G113","v":0}]
[null,null,{"$f":"'Décompte général'!C114","v":"Recette nette part producteur (après MG)"},null,null,null,{"$f":"+'Décompte général'!G114","v":0}]
[null,null,{"$f":"'Décompte général'!C115","v":"Total"},null,null,{"$f":"'Décompte général'!F115","v":"FILM NON AMORTI"},{"$f":"+'Décompte général'!G115","v":0}]

{"sheet":"Matrice décompte sofica","index":10,"n_rows":160,"n_cols":14,"rows_kept":160,"cut":false,"hidden":false,"merged":[[13,1,13,9],[1,1,1,4],[2,1,2,4],[3,1,3,4],[4,1,4,4],[11,1,11,9],[12,1,12,9]]}
[]
[null,"Expéditeur ",null,null,null,null,null,null,"Destinataire"]
[null,{"$f":"'Informations film'!C6","v":"[à compléter]"},null,null,null,null,null,null,{"$f":"N3&\" \"&+VLOOKUP($N$3,'Base de données ayants droit'!B:Y,2,FALSE)","v":"EXEMPLE 1 "},null,null,null,"Ayant droit ","EXEMPLE 1"]
[null,{"$f":"'Informations film'!C7","v":"[à compléter]"},null,null,null,null,null,null,{"$f":"+VLOOKUP($N$3,'Base de données ayants droit'!B:Y,5,FALSE)","v":"14 boulevard des Capucines"},null,null,null,"Ne pas modifier cette cellule"]
[null,{"$f":"'Informations film'!C8","v":"[à compléter]"},null,null,null,null,null,null,{"$f":"+VLOOKUP($N$3,'Base de données ayants droit'!B:Y,6,FALSE)","v":"75009 PARIS"}]
[]
[null,{"$f":"'Informations film'!C2","v":"FILM"},null,null,null,null,null,{"$f":"\"DÉCOMPTE N°\"&'Informations film'!C11","v":"DÉCOMPTE N°0"}]
[null,{"$f":"\"Sortie France : \"&'Informations film'!C4","v":"Sortie France : jj/mm/aaaa"},null,null,null,null,null,{"$f":"\"Arrété au \"&TEXT('Informations film'!C9,\"jj/mm/aaaa\")","v":"Arrété au 31/12/2023"}]
[null,{"$f":"\"Réalisation : \"&'Informations film'!C3","v":"Réalisation : [à compléter]"}]
[null,{"$f":"\"N° RCA : \"&'Informations film'!C5","v":"N° RCA : 123456"}]
[]
[null,{"$f":"+N3&\" \"&VLOOKUP(N3,'Base de données ayants droit'!B:Y,2,FALSE)","v":"EXEMPLE 1 "}]
[null,{"$f":"\"Contrat \"&VLOOKUP(N3,'Base de données ayants droit'!B:Y,3,FALSE)","v":"Contrat Coproducteur"}]
[null,{"$f":"\"Signé en date du \"&TEXT(VLOOKUP(N3,'Base de données ayants droit'!B:W,11,FALSE),\"jj/mm/aa\")&IF(VLOOKUP(N3,'Base de données ayants droit'!B:W,12,FALSE)=TRUE,\" et son/ses avenant(s)\",\"\")","v":"Signé en date du 28/12/1895 et son/ses avenant(s)"}]
[]
[null,null,null,null,null,null,null,"BASE","%","QP"]
[]
[null,{"$f":"+\"A/ JUSQU’À RECUPERATION DE \"&TEXT((VLOOKUP(N3,'Base de données ayants droit'!B:Y,13,FALSE)),\"# ##0€\")","v":"A/ JUSQU’À RECUPERATION DE 50 000€"},null,null,null,null,null,null,null,null,null,null,"Ligne à supprimer si pas de palier dans les droits à recette"]
[]
[null,"1/ EXPLOITATION CINEMA France"]
[null,null,"Recettes nette part producteur",null,null,null,null,{"$f":"IF(J99>0,J99,0)","v":0},{"$f":"+VLOOKUP($N$3,'Base de données ayants droit'!B:Y,14,FALSE)&\"%\"","v":"1%"},{"$f":"H21*I21","v":0}]
[]
[null,"2/ EXPLOITATION VIDEO France"]
[null,null,"Recettes nette part producteur",null,null,null,null,{"$f":"IF(J113>0,J113,0)","v":0},{"$f":"+VLOOKUP($N$3,'Base de données ayants droit'!B:Y,16,FALSE)&\"%\"","v":"2%"},{"$f":"H24*I24","v":0}]
[]
[null,"3/ EXPLOITATION VOD France"]
[null,null,"Recette nette part producteur",null,null,null,null,{"$f":"IF(J124>0,J124,0)","v":0},{"$f":"+VLOOKUP($N$3,'Base de données ayants droit'!B:Y,17,FALSE)&\"%\"","v":"3%"},{"$f":"H27*I27","v":0}]
[]
[null,"4/ EXPLOITATION TV France"]
[null,null,"Recette nette part producteur ",null,null,null,null,{"$f":"IF(J135>0,J135,0)","v":0},{"$f":"+VLOOKUP($N$3,'Base de données ayants droit'!B:Y,18,FALSE)&\"%\"","v":"4%"},{"$f":"H30*I30","v":0}]
[]
[null,"5/ EXPLOITATION SVOD France"]
[null,null,"Recette nette part producteur ",null,null,null,null,{"$f":"IF(J143>0,J143,0)","v":0},{"$f":"+VLOOKUP($N$3,'Base de données ayants droit'!B:Y,20,FALSE)&\"%\"","v":"5%"},{"$f":"H33*I33","v":0}]
[]
[null,"6/ EXPLOITATION INTERNATIONALE"]
[null,null,"Recette nette part producteur ",null,null,null,null,{"$f":"IF(J151>0,J151,0)","v":0},{"$f":"+VLOOKUP($N$3,'Base de données ayants droit'!B:Y,21,FALSE)&\"%\"","v":"6%"},{"$f":"H36*I36","v":0}]
[]
[null,"7/ AUTRES EXPLOITATIONS"]
[null,null,"Recette nette part producteur",null,null,null,null,{"$f":"IF(J157>0,J157,0)","v":0},{"$f":"+VLOOKUP($N$3,'Base de données ayants droit'!B:Y,22,FALSE)&\"%\"","v":"7%"},{"$f":"H39*I39","v":0}]
[]
[null,{"$f":"\"B/ APRES RECUPERATION DE \"&TEXT((VLOOKUP(N3,'Base de données ayants droit'!B:Y,13,FALSE)),\"# ##0€\")","v":"B/ APRES RECUPERATION DE 50 000€"}]
[]
[null,"9/ TOUS SUPPORTS "]
[null,null,"Recette nette part producteur",null,null,null,null,0,{"$f":"+VLOOKUP($N$3,'Base de données ayants droit'!B:AB,26,FALSE)&\"%\"","v":"9%"},0]
[]
[null,"TOTAL",null,null,null,null,null,null,null,{"$f":"SUM(J21:J45)","v":0}]
[]
[null,"TOTAL À VERSER ",null,null,null,null,null,null,null,{"$f":"IF(J46>0,J46,0)","v":0},null,null,"Ne pas modifier le nom de la cellule \"J48\" = \"TAV\""]
[]
[null,"À DÉDUIRE SITUATION PRÉCEDENTE",null,null,null,null,null,null,null,0,null,null,"Ne pas modifier le nom de la cellule \"J50\" = \"ADSP\""]
[]
[null,"A FACTURER H.T. SUR LA PÉRIODE",null,null,null,null,null,null,null,{"$f":"J48+J50","v":0}]
[]
[]
[]
[]
[]
[]
[]
[]
[]
[]
[]
[]
[]
[]
[]
[]
[]
[]
[]
[]
[]
[]
[]
[]
[]
[]
[]
[]
[null,{"$f":"'Informations film'!C2","v":"FILM"},null,null,null,null,null,null,null,{"$f":"TEXT('Informations film'!C9,\"jj/mm/aaaa\")","v":"31/12/2023"}]
[]
[null,null,null,null,null,null,null,{"$f":"+'Décompte général'!H10","v":"ANTÉRIEUR"},{"$f":"+'Décompte général'!I10","v":"PÉRIODE"},{"$f":"+'Décompte général'!J10","v":"CUMUL"},null,null,"Ne pas modifier le nom des cellules \"H74\" = \"ANTÉRIEUR\" et \"J74\" = \"CUMUL\""]
[null,{"$f":"+'Décompte général'!B11","v":"1/ EXPLOITATION CINÉMA FRANCE"},null,null,null,null,{"$f":"+'Décompte général'!G11","v":"[DISTRIBUTEUR]"}]
[null,null,{"$f":"+'Décompte général'!C12","v":"Nombre d'entrées encaissées"},null,null,null,{"$f":"+'Décompte général'!G12","v":0}]
[]
[null,null,{"$f":"+'Décompte général'!C15","v":"Recette brute distributeur secteur commercial"},null,null,null,null,0,{"$f":"+J87-H87","v":0},{"$f":"+'Décompte général'!J15","v":0}]
[null,null,{"$f":"+'Décompte général'!C16","v":"Commission de distribution secteur commercial"},null,null,null,{"$f":"+'Décompte général'!G16","v":0.25},0,{"$f":"+J88-H88","v":0},{"$f":"J87*-G88","v":0}]
[null,null,{"$f":"+'Décompte général'!C17","v":"Frais de commercialisation"},null,null,null,null,0,0,{"$f":"+'Décompte général'!J17","v":0}]
[null,null,{"$f":"+'Décompte général'!C18","v":"Cotisations et taxes"},null,null,null,null,0,0,{"$f":"+'Décompte général'!J18","v":0}]
[null,null,{"$f":"+'Décompte général'!C19","v":"Recette nette part producteur cinéma France secteur commercial"},null,null,null,null,0,0,{"$f":"SUM(J87:J90)","v":0}]
[]
[null,null,{"$f":"+'Décompte général'!C21","v":"Recette brute distributeur secteur non commercial"},null,null,null,null,0,0,{"$f":"+'Décompte général'!J21","v":0}]
[null,null,{"$f":"+'Décompte général'!C22","v":"Commission de distribution secteur non commercial"},null,null,null,{"$f":"+'Décompte général'!G22","v":0.3},0,0,{"$f":"J93*-G94","v":0}]
[null,null,{"$f":"+'Décompte général'!C23","v":"Cotisations et taxes"},null,null,null,null,0,0,{"$f":"+'Décompte général'!J23","v":0}]
[null,null,{"$f":"+'Décompte général'!C24","v":"Recette nette part producteur cinéma France secteur non commercial"},null,null,null,null,0,0,{"$f":"SUM(J93:J95)","v":0}]
[]
[null,null,{"$f":"+'Décompte général'!C26","v":"Minimum garanti"},null,null,null,{"$f":"+'Décompte général'!G26","v":0},0,0,{"$f":"-G98","v":0}]
[null,null,{"$f":"+'Décompte général'!C27","v":"Recette nette part producteur cinéma France (après MG)"},null,null,null,null,0,0,{"$f":"SUM(J91,J96,J98)","v":0}]
[]
[null,{"$f":"+'Décompte général'!B29","v":"2/ EXPLOITATION VIDÉO FRANCE"},null,null,null,null,{"$f":"+'Décompte général'!G29","v":"[DISTRIBUTEUR]"}]
[null,null,null,null,null,null,{"$f":"+'Décompte général'!G34","v":"Nombre vente"}]
[null,null,{"$f":"+'Décompte général'!C35","v":"Chiffre d'affaires net éditeur HT - Vente directe"},null,null,null,{"$f":"IF('Décompte général'!G35>0,'Décompte général'!G35,\"\")","v":""},0,{"$f":"J103-H103","v":0},{"$f":"'Décompte général'!J35","v":0}]
[null,null,{"$f":"+'Décompte général'!C36","v":"Chiffre d'affaires net éditeur HT - Location"},null,null,null,{"$f":"IF('Décompte général'!G36>0,'Décompte général'!G36,\"\")","v":""},0,{"$f":"J104-H104","v":0},{"$f":"'Décompte général'!J36","v":0}]
[null,null,{"$f":"+'Décompte général'!C37","v":"Chiffre d'affaires net éditeur HT - Autres circuits"},null,null,null,{"$f":"IF('Décompte général'!G37>0,'Décompte général'!G37,\"\")","v":""},0,0,{"$f":"'Décompte général'!J37","v":0}]
[null,null,{"$f":"+'Décompte général'!C38","v":"Royalties - Vente directe"},null,null,null,{"$f":"+'Décompte général'!G38","v":0.3},0,0,{"$f":"J103*G106","v":0}]
[null,null,{"$f":"+'Décompte général'!C39","v":"Royalties - Location"},null,null,null,{"$f":"+'Décompte général'!G39","v":0.3},0,0,{"$f":"J104*G107","v":0}]
[null,null,{"$f":"+'Décompte général'!C40","v":"Royalties - Autres circuits"},null,null,null,{"$f":"+'Décompte général'!G40","v":0.3},0,0,{"$f":"J105*G108","v":0}]
[null,null,{"$f":"+'Décompte général'!C41","v":"Provision pour retour"},null,null,null,null,0,0,{"$f":"'Décompte général'!J41","v":0}]
[null,null,{"$f":"+'Décompte général'!C42","v":"Frais de commercialisation"},null,null,null,null,0,0,{"$f":"'Décompte général'!J42","v":0}]
[null,null,{"$f":"+'Décompte général'!C43","v":"Cotisations et taxes"},null,null,null,null,0,0,{"$f":"'Décompte général'!J43","v":0}]
[null,null,{"$f":"+'Décompte général'!C44","v":"Minimum garanti"},null,null,null,{"$f":"+'Décompte général'!G44","v":0},0,0,{"$f":"-G112","v":0}]
[null,null,{"$f":"+'Décompte général'!C45","v":"Recette nette part producteur vidéo France (après MG)"},null,null,null,null,0,0,{"$f":"SUM(J106:J112)","v":0}]
[]
[null,{"$f":"+'Décompte général'!B47","v":"3/ EXPLOITATION VOD FRANCE"},null,null,null,null,{"$f":"+'Décompte général'!G47","v":"[DISTRIBUTEUR]"}]
[null,null,null,null,null,null,{"$f":"+'Décompte général'!G50","v":"Nombre acte"}]
[null,null,{"$f":"+'Décompte général'!C51","v":"Recette brute - VOD locative"},null,null,null,{"$f":"IF(+'Décompte général'!G51>0,+'Décompte général'!G51,\"\")","v":""},0,{"$f":"J117-H117","v":0},{"$f":"'Décompte général'!J51","v":0}]
[null,null,{"$f":"+'Décompte général'!C52","v":"Recette brute - Téléchargement définitif (EST)"},null,null,null,{"$f":"IF(+'Décompte général'!G52>0,+'Décompte général'!G52,\"\")","v":""},0,{"$f":"J118-H118","v":0},{"$f":"'Décompte général'!J52","v":0}]
[null,null,{"$f":"+'Décompte général'!C53","v":"Commission de distribution - VOD locative"},null,null,null,{"$f":"+'Décompte général'!G53","v":0.3},0,0,{"$f":"J117*-G119","v":0}]
[null,null,{"$f":"+'Décompte général'!C54","v":"Commission de distribution - EST"},null,null,null,{"$f":"+'Décompte général'!G54","v":0.3},0,0,{"$f":"J118*-G120","v":0}]
[null,null,{"$f":"+'Décompte général'!C55","v":"Frais de commercialisation"},null,null,null,null,0,0,{"$f":"'Décompte général'!J55","v":0}]
[null,null,{"$f":"+'Décompte général'!C56","v":"Cotisations et taxes"},null,null,null,null,0,0,{"$f":"'Décompte général'!J56","v":0}]
[null,null,{"$f":"+'Décompte général'!C57","v":"Minimum garanti"},null,null,null,{"$f":"+'Décompte général'!G57","v":0},0,0,{"$f":"-G123","v":0}]
[null,null,{"$f":"+'Décompte général'!C58","v":"Recette nette part producteur VOD France (après MG)"},null,null,null,null,0,0,{"$f":"SUM(J117:J123)","v":0}]
[]
[null,{"$f":"+'Décompte général'!B60","v":"4/ EXPLOITATION TV FRANCE"},null,null,null,null,{"$f":"+'Décompte général'!G60","v":"[DISTRIBUTEUR]"}]
[null,null,{"$f":"+'Décompte général'!C64","v":"[Chaîne]"},null,null,null,{"$f":"+'Décompte général'!G64","v":0},0,{"$f":"J127-H127","v":0},{"$f":"'Décompte général'!J64","v":0}]
[null,null,{"$f":"+'Décompte général'!C65","v":"Recette brute ventes > 50k€"},null,null,null,null,0,{"$f":"J128-H128","v":0},{"$f":"SUM(J127)","v":0}]
[null,null,{"$f":"+'Décompte général'!C66","v":"[Chaîne]"},null,null,null,{"$f":"+'Décompte général'!G66","v":0},0,0,{"$f":"'Décompte général'!J66","v":0}]
[null,null,{"$f":"+'Décompte général'!C67","v":"Recette brute ventes < 50k€"},null,null,null,null,0,0,{"$f":"SUM(J129)","v":0}]
[null,null,{"$f":"+'Décompte général'!C68","v":"Commission de distribution ventes > 50k€"},null,null,null,{"$f":"+'Décompte général'!G68","v":0.1},0,0,{"$f":"J128*-G131","v":0}]
[null,null,{"$f":"+'Décompte général'!C69","v":"Commission de distribution ventes < 50k€"},null,null,null,{"$f":"+'Décompte général'!G69","v":0.15},0,0,{"$f":"J130*-G132","v":0}]
[null,null,{"$f":"+'Décompte général'!C70","v":"Frais de commercialisation"},null,null,null,null,0,0,{"$f":"'Décompte général'!J70","v":0}]
[null,null,{"$f":"+'Décompte général'!C71","v":"Cotisations et taxes"},null,null,null,null,0,0,{"$f":"'Décompte général'!J71","v":0}]
[null,null,{"$f":"+'Décompte général'!C72","v":"Recette nette part producteur TV France"},null,null,null,null,0,0,{"$f":"SUM(J128,J130,J131:J134)","v":0}]
[]
[null,{"$f":"+'Décompte général'!B74","v":"5/ EXPLOITATION SVOD FRANCE"},null,null,null,null,{"$f":"+'Décompte général'!G74","v":"[DISTRIBUTEUR]"}]
[null,null,{"$f":"+'Décompte général'!C78","v":"[Plateforme]"},null,null,null,null,0,{"$f":"J138-H138","v":0},{"$f":"'Décompte général'!J78","v":0}]
[null,null,{"$f":"+'Décompte général'!C79","v":"Recette brute "},null,null,null,null,0,{"$f":"J139-H139","v":0},{"$f":"SUM(J138)","v":0}]
[null,null,{"$f":"+'Décompte général'!C80","v":"Commission de distribution "},null,null,null,{"$f":"+'Décompte général'!G80","v":0.3},0,0,{"$f":"J139*-G140","v":0}]
[null,null,{"$f":"+'Décompte général'!C81","v":"Frais de commercialisation"},null,null,null,null,0,0,{"$f":"'Décompte général'!J81","v":0}]
[null,null,{"$f":"+'Décompte général'!C82","v":"Cotisations et taxes"},null,null,null,null,0,0,{"$f":"'Décompte général'!J82","v":0}]
[null,null,{"$f":"+'Décompte général'!C83","v":"Recette nette part producteur SVOD France"},null,null,null,null,0,0,{"$f":"SUM(J139:J142)","v":0}]
[]
[null,{"$f":"+'Décompte général'!B85","v":"6/ EXPLOITATION INTERNATIONALE"},null,null,null,null,{"$f":"+'Décompte général'!G85","v":"[DISTRIBUTEUR]"}]
[null,null,{"$f":"+'Décompte général'!C86","v":"Recette brute "},null,null,null,null,0,{"$f":"J146-H146","v":0},{"$f":"'Décompte général'!J86","v":0}]
[null,null,{"$f":"+'Décompte général'!C87","v":"Commission de distribution "},null,null,null,{"$f":"+'Décompte général'!G87","v":0.25},0,{"$f":"J147-H147","v":0},{"$f":"J146*-G147","v":0}]
[null,null,{"$f":"+'Décompte général'!C88","v":"Frais de commercialisation"},null,null,null,null,0,0,{"$f":"'Décompte général'!J88","v":0}]
[null,null,{"$f":"+'Décompte général'!C89","v":"Cotisations et taxes"},null,null,null,null,0,0,{"$f":"'Décompte général'!J89","v":0}]
[null,null,{"$f":"+'Décompte général'!C90","v":"Minimum garanti"},null,null,null,{"$f":"+'Décompte général'!G90","v":0},0,0,{"$f":"-G150","v":0}]
[null,null,{"$f":"+'Décompte général'!C91","v":"Recette nette part producteur internationale (après MG)"},null,null,null,null,0,0,{"$f":"SUM(J146:J150)","v":0}]
[]
[null,{"$f":"+'Décompte général'!B93","v":"7/ EXPLOITATION MERCHANDISING"},null,null,null,null,{"$f":"+'Décompte général'!G93","v":"[DISTRIBUTEUR]"}]
[null,null,{"$f":"+'Décompte général'!C94","v":"Recette brute "},null,null,null,null,0,{"$f":"J154-H154","v":0},{"$f":"'Décompte général'!J94","v":0}]
[null,null,{"$f":"+'Décompte général'!C95","v":"Commission de distribution "},null,null,null,{"$f":"+'Décompte général'!G95","v":0.2},0,{"$f":"J155-H155","v":0},{"$f":"J154*-G155","v":0}]
[null,null,{"$f":"+'Décompte général'!C96","v":"Frais de commercialisation"},null,null,null,null,0,0,{"$f":"'Décompte général'!J96","v":0}]
[null,null,{"$f":"+'Décompte général'!C97","v":"Recette nette part producteur merchandising"},null,null,null,null,0,0,{"$f":"SUM(J154:J156)","v":0}]
[]
[]
[null,null,null,null,null,null,null,null,null,null,null,null,"Ne rien renseigner sous les colonnes Antérieur, Période et Cumul (cf. tutoriel étape 4 pour plus de détails.)"]

{"sheet":"Matrice décompte autre AD","index":11,"n_rows":166,"n_cols":14,"rows_kept":166,"cut":false,"hidden":false,"merged":[[13,1,13,9],[1,1,1,4],[2,1,2,4],[3,1,3,4],[4,1,4,4],[11,1,11,9],[12,1,12,9]]}
[]
[null,"Expéditeur ",null,null,null,null,null,null,"Destinataire"]
[null,{"$f":"'Informations film'!C6","v":"[à compléter]"},null,null,null,null,null,null,{"$f":"N3&\" \"&+VLOOKUP($N$3,'Base de données ayants droit'!B:Y,2,FALSE)","v":"EXEMPLE 1 "},null,null,null,"Ayant droit ","EXEMPLE 1"]
[null,{"$f":"'Informations film'!C7","v":"[à compléter]"},null,null,null,null,null,null,{"$f":"+VLOOKUP($N$3,'Base de données ayants droit'!B:Y,5,FALSE)","v":"14 boulevard des Capucines"},null,null,null,"Ne pas modifier cette cellule"]
[null,{"$f":"'Informations film'!C8","v":"[à compléter]"},null,null,null,null,null,null,{"$f":"+VLOOKUP($N$3,'Base de données ayants droit'!B:Y,6,FALSE)","v":"75009 PARIS"}]
[]
[null,{"$f":"'Informations film'!C2","v":"FILM"},null,null,null,null,null,{"$f":"\"DÉCOMPTE N°\"&'Informations film'!C11","v":"DÉCOMPTE N°0"}]
[null,{"$f":"\"Sortie France : \"&'Informations film'!C4","v":"Sortie France : jj/mm/aaaa"},null,null,null,null,null,{"$f":"\"Arrété au \"&TEXT('Informations film'!C9,\"jj/mm/aaaa\")","v":"Arrété au 31/12/2023"}]
[null,{"$f":"\"Réalisation : \"&'Informations film'!C3","v":"Réalisation : [à compléter]"}]
[null,{"$f":"\"N° RCA : \"&'Informations film'!C5","v":"N° RCA : 123456"}]
[]
[null,{"$f":"+N3&\" \"&VLOOKUP(N3,'Base de données ayants droit'!B:Y,2,FALSE)","v":"EXEMPLE 1 "}]
[null,{"$f":"\"Contrat \"&VLOOKUP(N3,'Base de données ayants droit'!B:Y,3,FALSE)","v":"Contrat Coproducteur"}]
[null,{"$f":"\"Signé en date du \"&TEXT(VLOOKUP(N3,'Base de données ayants droit'!B:W,11,FALSE),\"jj/mm/aa\")&IF(VLOOKUP(N3,'Base de données ayants droit'!B:W,12,FALSE)=TRUE,\" et son/ses avenant(s)\",\"\")","v":"Signé en date du 28/12/1895 et son/ses avenant(s)"}]
[]
[null,null,null,null,null,null,null,"BASE","%","QP"]
[]
[null,{"$f":"+\"A/ JUSQU’À RECUPERATION DE \"&TEXT((VLOOKUP(N3,'Base de données ayants droit'!B:Y,13,FALSE)),\"# ##0€\")","v":"A/ JUSQU’À RECUPERATION DE 50 000€"},null,null,null,null,null,null,null,null,null,null,"Ligne à supprimier si pas de palier dans les droits à recette"]
[]
[null,"1/ EXPLOITATION CINEMA France"]
[null,null,"Recettes nette part producteur",null,null,null,null,{"$f":"IF(J100>0,J100,0)","v":0},{"$f":"+VLOOKUP($N$3,'Base de données ayants droit'!B:Y,14,FALSE)&\"%\"","v":"1%"},{"$f":"H21*I21","v":0}]
[]
[null,"2/ EXPLOITATION VIDEO France"]
[null,null,"Recettes nette part producteur",null,null,null,null,{"$f":"IF(J114>0,J114,0)","v":0},{"$f":"+VLOOKUP($N$3,'Base de données ayants droit'!B:Y,16,FALSE)&\"%\"","v":"2%"},{"$f":"H24*I24","v":0}]
[]
[null,"3/ EXPLOITATION VOD France"]
[null,null,"Recette nette part producteur",null,null,null,null,{"$f":"IF(J125>0,J157,0)","v":0},{"$f":"+VLOOKUP($N$3,'Base de données ayants droit'!B:Y,17,FALSE)&\"%\"","v":"3%"},{"$f":"H27*I27","v":0}]
[]
[null,"4/ EXPLOITATION TV France"]
[null,null,"Recette nette part producteur ",null,null,null,null,{"$f":"IF(J136>0,J136,0)","v":0},{"$f":"+VLOOKUP($N$3,'Base de données ayants droit'!B:Y,18,FALSE)&\"%\"","v":"4%"},{"$f":"H30*I30","v":0}]
[]
[null,"5/ EXPLOITATION SVOD France"]
[null,null,"Recette nette part producteur ",null,null,null,null,{"$f":"IF(J144>0,J144,0)","v":0},{"$f":"+VLOOKUP($N$3,'Base de données ayants droit'!B:Y,20,FALSE)&\"%\"","v":"5%"},{"$f":"H33*I33","v":0}]
[]
[null,"6/ EXPLOITATION INTERNATIONALE"]
[null,null,"Recette nette part producteur ",null,null,null,null,{"$f":"IF(J152>0,J152,0)","v":0},{"$f":"+VLOOKUP($N$3,'Base de données ayants droit'!B:Y,21,FALSE)&\"%\"","v":"6%"},{"$f":"H36*I36","v":0}]
[]
[null,"7/ AUTRES EXPLOITATIONS"]
[null,null,"Recette nette part producteur",null,null,null,null,{"$f":"IF(J158>0,J158,0)","v":0},{"$f":"+VLOOKUP($N$3,'Base de données ayants droit'!B:Y,22,FALSE)&\"%\"","v":"7%"},{"$f":"H39*I39","v":0}]
[]
[null,"8/ FONDS DE SOUTIEN PRODUCTEUR",null,null,null,null,null,null,null,null,null,null,"Ligne à supprimer si l'ayant droit ne posséde pas de droits sur le fonds de soutien producteur"]
[null,null,"Montant à répartir après franchise ",null,null,null,null,{"$f":"J163","v":0},{"$f":"+VLOOKUP($N$3,'Base de données ayants droit'!B:AB,25,FALSE)&\"%\"","v":"8%"},{"$f":"+H42*I42","v":0},null,null,"Ligne à supprimer si l'ayant droit ne posséde pas de droits sur le fonds de soutien producteur"]
[]
[null,{"$f":"\"B/ APRES RECUPERATION DE \"&TEXT((VLOOKUP(N3,'Base de données ayants droit'!B:Y,13,FALSE)),\"# ##0€\")","v":"B/ APRES RECUPERATION DE 50 000€"},null,null,null,null,null,null,null,null,null,null,"Ligne à supprimer si pas de palier dans les droits à recette"]
[null,null,null,null,null,null,null,null,null,null,null,null,"Ligne à supprimer si pas de palier dans les droits à recette"]
[null,"9/ TOUS SUPPORTS HORS FONDS DE SOUTIEN",null,null,null,null,null,null,null,null,null,null,"Ligne à supprimer si pas de palier dans les droits à recette"]
[null,null,"Recette nette part producteur",null,null,null,null,0,{"$f":"+VLOOKUP($N$3,'Base de données ayants droit'!B:AB,26,FALSE)&\"%\"","v":"9%"},0,null,null,"Ligne à supprimer si pas de palier dans les droits à recette"]
[null,null,null,null,null,null,null,null,null,null,null,null,"Ligne à supprimer si pas de palier dans les droits à recette"]
[null,"10/ FONDS DE SOUTIEN",null,null,null,null,null,null,null,null,null,null,"Ligne à supprimer si pas de palier dans les droits à recette"]
[null,null,"Montant à répartir",null,null,null,null,0,{"$f":"+VLOOKUP($N$3,'Base de données ayants droit'!B:AB,27,FALSE)&\"%\"","v":"10%"},0,null,null,"Ligne à supprimer si pas de palier dans les droits à recette"]
[]
[null,"TOTAL",null,null,null,null,null,null,null,{"$f":"SUM(J21:J51)","v":0}]
[]
[null,"TOTAL À VERSER (hors fonds de soutien)",null,null,null,null,null,null,null,{"$f":"IF(J52>0,J52,0)","v":0},null,null,"Ne pas modifier le nom de la cellule \"J48\" = \"TAV\""]
[]
[null,"À DÉDUIRE SITUATION PRÉCEDENTE",null,null,null,null,null,null,null,0,null,null,"Ne pas modifier le nom de la cellule \"J50\" = \"ADSP\""]
[]
[null,"A FACTURER H.T. SUR LA PÉRIODE",null,null,null,null,null,null,null,{"$f":"J54+J56","v":0}]
[]
[]
[]
[]
[]
[]
[]
[]
[]
[]
[]
[]
[]
[]
[]
[]
[]
[]
[]
[]
[]
[]
[]
[null,{"$f":"'Informations film'!C2","v":"FILM"},null,null,null,null,null,null,null,{"$f":"TEXT('Informations film'!C9,\"jj/mm/aaaa\")","v":"31/12/2023"}]
[]
[null,null,null,null,null,null,null,{"$f":"+'Décompte général'!H10","v":"ANTÉRIEUR"},{"$f":"+'Décompte général'!I10","v":"PÉRIODE"},{"$f":"+'Décompte général'!J10","v":"CUMUL"},null,null,"Ne pas modifier le nom des cellules \"H74\" = \"ANTÉRIEUR\" et \"J74\" = \"CUMUL\""]
[null,{"$f":"+'Décompte général'!B11","v":"1/ EXPLOITATION CINÉMA FRANCE"},null,null,null,null,{"$f":"+'Décompte général'!G11","v":"[DISTRIBUTEUR]"}]
[null,null,{"$f":"+'Décompte général'!C12","v":"Nombre d'entrées encaissées"},null,null,null,{"$f":"+'Décompte général'!G12","v":0}]
[]
[null,null,{"$f":"+'Décompte général'!C15","v":"Recette brute distributeur secteur commercial"},null,null,null,null,0,{"$f":"+J88-H88","v":0},{"$f":"+'Décompte général'!J15","v":0}]
[null,null,{"$f":"+'Décompte général'!C16","v":"Commission de distribution secteur commercial"},null,null,null,{"$f":"+'Décompte général'!G16","v":0.25},0,{"$f":"+J89-H89","v":0},{"$f":"J88*-G89","v":0}]
[null,null,{"$f":"+'Décompte général'!C17","v":"Frais de commercialisation"},null,null,null,null,0,0,{"$f":"+'Décompte général'!J17","v":0}]
[null,null,{"$f":"+'Décompte général'!C18","v":"Cotisations et taxes"},null,null,null,null,0,0,{"$f":"+'Décompte général'!J18","v":0}]
[null,null,{"$f":"+'Décompte général'!C19","v":"Recette nette part producteur cinéma France secteur commercial"},null,null,null,null,0,0,{"$f":"SUM(J88:J91)","v":0}]
[]
[null,null,{"$f":"+'Décompte général'!C21","v":"Recette brute distributeur secteur non commercial"},null,null,null,null,0,0,{"$f":"+'Décompte général'!J21","v":0}]
[null,null,{"$f":"+'Décompte général'!C22","v":"Commission de distribution secteur non commercial"},null,null,null,{"$f":"+'Décompte général'!G22","v":0.3},0,0,{"$f":"J94*-G95","v":0}]
[null,null,{"$f":"+'Décompte général'!C23","v":"Cotisations et taxes"},null,null,null,null,0,0,{"$f":"+'Décompte général'!J23","v":0}]
[null,null,{"$f":"+'Décompte général'!C24","v":"Recette nette part producteur cinéma France secteur non commercial"},null,null,null,null,0,0,{"$f":"SUM(J94:J96)","v":0}]
[]
[null,null,{"$f":"+'Décompte général'!C26","v":"Minimum garanti"},null,null,null,{"$f":"+'Décompte général'!G26","v":0},0,0,{"$f":"-G99","v":0}]
[null,null,{"$f":"+'Décompte général'!C27","v":"Recette nette part producteur cinéma France (après MG)"},null,null,null,null,0,0,{"$f":"SUM(J92,J97,J99)","v":0}]
[]
[null,{"$f":"+'Décompte général'!B29","v":"2/ EXPLOITATION VIDÉO FRANCE"},null,null,null,null,{"$f":"+'Décompte général'!G29","v":"[DISTRIBUTEUR]"}]
[null,null,null,null,null,null,{"$f":"+'Décompte général'!G34","v":"Nombre vente"}]
[null,null,{"$f":"+'Décompte général'!C35","v":"Chiffre d'affaires net éditeur HT - Vente directe"},null,null,null,{"$f":"IF('Décompte général'!G35>0,'Décompte général'!G35,\"\")","v":""},0,{"$f":"J104-H104","v":0},{"$f":"'Décompte général'!J35","v":0}]
[null,null,{"$f":"+'Décompte général'!C36","v":"Chiffre d'affaires net éditeur HT - Location"},null,null,null,{"$f":"IF('Décompte général'!G36>0,'Décompte général'!G36,\"\")","v":""},0,{"$f":"J105-H105","v":0},{"$f":"'Décompte général'!J36","v":0}]
[null,null,{"$f":"+'Décompte général'!C37","v":"Chiffre d'affaires net éditeur HT - Autres circuits"},null,null,null,{"$f":"IF('Décompte général'!G37>0,'Décompte général'!G37,\"\")","v":""},0,0,{"$f":"'Décompte général'!J37","v":0}]
[null,null,{"$f":"+'Décompte général'!C38","v":"Royalties - Vente directe"},null,null,null,{"$f":"+'Décompte général'!G38","v":0.3},0,0,{"$f":"J104*G107","v":0}]
[null,null,{"$f":"+'Décompte général'!C39","v":"Royalties - Location"},null,null,null,{"$f":"+'Décompte général'!G39","v":0.3},0,0,{"$f":"J105*G108","v":0}]
[null,null,{"$f":"+'Décompte général'!C40","v":"Royalties - Autres circuits"},null,null,null,{"$f":"+'Décompte général'!G40","v":0.3},0,0,{"$f":"J106*G109","v":0}]
[null,null,{"$f":"+'Décompte général'!C41","v":"Provision pour retour"},null,null,null,null,0,0,{"$f":"'Décompte général'!J41","v":0}]
[null,null,{"$f":"+'Décompte général'!C42","v":"Frais de commercialisation"},null,null,null,null,0,0,{"$f":"'Décompte général'!J42","v":0}]
[null,null,{"$f":"+'Décompte général'!C43","v":"Cotisations et taxes"},null,null,null,null,0,0,{"$f":"'Décompte général'!J43","v":0}]
[null,null,{"$f":"+'Décompte général'!C44","v":"Minimum garanti"},null,null,null,{"$f":"+'Décompte général'!G44","v":0},0,0,{"$f":"-MIN(SUM(J107:J112),G113)","v":0}]
[null,null,{"$f":"+'Décompte général'!C45","v":"Recette nette part producteur vidéo France (après MG)"},null,null,null,null,0,0,{"$f":"SUM(J107:J113)","v":0}]
[]
[null,{"$f":"+'Décompte général'!B47","v":"3/ EXPLOITATION VOD FRANCE"},null,null,null,null,{"$f":"+'Décompte général'!G47","v":"[DISTRIBUTEUR]"}]
[null,null,null,null,null,null,{"$f":"+'Décompte général'!G50","v":"Nombre acte"}]
[null,null,{"$f":"+'Décompte général'!C51","v":"Recette brute - VOD locative"},null,null,null,{"$f":"IF(+'Décompte général'!G51>0,+'Décompte général'!G51,\"\")","v":""},0,{"$f":"J118-H118","v":0},{"$f":"'Décompte général'!J51","v":0}]
[null,null,{"$f":"+'Décompte général'!C52","v":"Recette brute - Téléchargement définitif (EST)"},null,null,null,{"$f":"IF(+'Décompte général'!G52>0,+'Décompte général'!G52,\"\")","v":""},0,{"$f":"J119-H119","v":0},{"$f":"'Décompte général'!J52","v":0}]
[null,null,{"$f":"+'Décompte général'!C53","v":"Commission de distribution - VOD locative"},null,null,null,{"$f":"+'Décompte général'!G53","v":0.3},0,0,{"$f":"J118*-G120","v":0}]
[null,null,{"$f":"+'Décompte général'!C54","v":"Commission de distribution - EST"},null,null,null,{"$f":"+'Décompte général'!G54","v":0.3},0,0,{"$f":"J119*-G121","v":0}]
[null,null,{"$f":"+'Décompte général'!C55","v":"Frais de commercialisation"},null,null,null,null,0,0,{"$f":"'Décompte général'!J55","v":0}]
[null,null,{"$f":"+'Décompte général'!C56","v":"Cotisations et taxes"},null,null,null,null,0,0,{"$f":"'Décompte général'!J56","v":0}]
[null,null,{"$f":"+'Décompte général'!C57","v":"Minimum garanti"},null,null,null,{"$f":"+'Décompte général'!G57","v":0},0,0,{"$f":"-G124","v":0}]
[null,null,{"$f":"+'Décompte général'!C58","v":"Recette nette part producteur VOD France (après MG)"},null,null,null,null,0,0,{"$f":"SUM(J118:J124)","v":0}]
[]
[null,{"$f":"+'Décompte général'!B60","v":"4/ EXPLOITATION TV FRANCE"},null,null,null,null,{"$f":"+'Décompte général'!G60","v":"[DISTRIBUTEUR]"}]
[null,null,{"$f":"+'Décompte général'!C64","v":"[Chaîne]"},null,null,null,{"$f":"+'Décompte général'!G64","v":0},0,{"$f":"J128-H128","v":0},{"$f":"'Décompte général'!J64","v":0}]
[null,null,{"$f":"+'Décompte général'!C65","v":"Recette brute ventes > 50k€"},null,null,null,null,0,{"$f":"J129-H129","v":0},{"$f":"SUM(J128)","v":0}]
[null,null,{"$f":"+'Décompte général'!C66","v":"[Chaîne]"},null,null,null,{"$f":"+'Décompte général'!G66","v":0},0,0,{"$f":"'Décompte général'!J66","v":0}]
[null,null,{"$f":"+'Décompte général'!C67","v":"Recette brute ventes < 50k€"},null,null,null,null,0,0,{"$f":"SUM(J130)","v":0}]
[null,null,{"$f":"+'Décompte général'!C68","v":"Commission de distribution ventes > 50k€"},null,null,null,{"$f":"+'Décompte général'!G68","v":0.1},0,0,{"$f":"J129*-G132","v":0}]
[null,null,{"$f":"+'Décompte général'!C69","v":"Commission de distribution ventes < 50k€"},null,null,null,{"$f":"+'Décompte général'!G69","v":0.15},0,0,{"$f":"J131*-G133","v":0}]
[null,null,{"$f":"+'Décompte général'!C70","v":"Frais de commercialisation"},null,null,null,null,0,0,{"$f":"'Décompte général'!J70","v":0}]
[null,null,{"$f":"+'Décompte général'!C71","v":"Cotisations et taxes"},null,null,null,null,0,0,{"$f":"'Décompte général'!J71","v":0}]
[null,null,{"$f":"+'Décompte général'!C72","v":"Recette nette part producteur TV France"},null,null,null,null,0,0,{"$f":"SUM(J129,J131,J132:J135)","v":0}]
[]
[null,{"$f":"+'Décompte général'!B74","v":"5/ EXPLOITATION SVOD FRANCE"},null,null,null,null,{"$f":"+'Décompte général'!G74","v":"[DISTRIBUTEUR]"}]
[null,null,{"$f":"+'Décompte général'!C78","v":"[Plateforme]"},null,null,null,null,0,{"$f":"J139-H139","v":0},{"$f":"'Décompte général'!J78","v":0}]
[null,null,{"$f":"+'Décompte général'!C79","v":"Recette brute "},null,null,null,null,0,{"$f":"J140-H140","v":0},{"$f":"SUM(J139)","v":0}]
[null,null,{"$f":"+'Décompte général'!C80","v":"Commission de distribution "},null,null,null,{"$f":"+'Décompte général'!G80","v":0.3},0,0,{"$f":"J140*-G141","v":0}]
[null,null,{"$f":"+'Décompte général'!C81","v":"Frais de commercialisation"},null,null,null,null,0,0,{"$f":"'Décompte général'!J81","v":0}]
[null,null,{"$f":"+'Décompte général'!C82","v":"Cotisations et taxes"},null,null,null,null,0,0,{"$f":"'Décompte général'!J82","v":0}]
[null,null,{"$f":"+'Décompte général'!C83","v":"Recette nette part producteur SVOD France"},null,null,null,null,0,0,{"$f":"SUM(J140:J143)","v":0}]
[]
[null,{"$f":"+'Décompte général'!B85","v":"6/ EXPLOITATION INTERNATIONALE"},null,null,null,null,{"$f":"+'Décompte général'!G85","v":"[DISTRIBUTEUR]"}]
[null,null,{"$f":"+'Décompte général'!C86","v":"Recette brute "},null,null,null,null,0,{"$f":"J147-H147","v":0},{"$f":"'Décompte général'!J86","v":0}]
[null,null,{"$f":"+'Décompte général'!C87","v":"Commission de distribution "},null,null,null,{"$f":"+'Décompte général'!G87","v":0.25},0,{"$f":"J148-H148","v":0},{"$f":"J147*-G148","v":0}]
[null,null,{"$f":"+'Décompte général'!C88","v":"Frais de commercialisation"},null,null,null,null,0,0,{"$f":"'Décompte général'!J88","v":0}]
[null,null,{"$f":"+'Décompte général'!C89","v":"Cotisations et taxes"},null,null,null,null,0,0,{"$f":"'Décompte général'!J89","v":0}]
[null,null,{"$f":"+'Décompte général'!C90","v":"Minimum garanti"},null,null,null,{"$f":"+'Décompte général'!G90","v":0},0,0,{"$f":"-G151","v":0}]
[null,null,{"$f":"+'Décompte général'!C91","v":"Recette nette part producteur internationale (après MG)"},null,null,null,null,0,0,{"$f":"SUM(J147:J151)","v":0}]
[]
[null,{"$f":"+'Décompte général'!B93","v":"7/ EXPLOITATION MERCHANDISING"},null,null,null,null,{"$f":"+'Décompte général'!G93","v":"[DISTRIBUTEUR]"}]
[null,null,{"$f":"+'Décompte général'!C94","v":"Recette brute "},null,null,null,null,0,{"$f":"J155-H155","v":0},{"$f":"'Décompte général'!J94","v":0}]
[null,null,{"$f":"+'Décompte général'!C95","v":"Commission de distribution "},null,null,null,{"$f":"+'Décompte général'!G95","v":0.2},0,{"$f":"J156-H156","v":0},{"$f":"J155*-G156","v":0}]
[null,null,{"$f":"+'Décompte général'!C96","v":"Frais de commercialisation"},null,null,null,null,0,0,{"$f":"'Décompte général'!J96","v":0}]
[null,null,{"$f":"+'Décompte général'!C97","v":"Recette nette part producteur merchandising"},null,null,null,null,0,0,{"$f":"SUM(J155:J157)","v":0}]
[]
[null,{"$f":"+'Décompte général'!B99","v":"8/ FONDS DE SOUTIEN PRODUCTEUR"}]
[null,null,{"$f":"+'Décompte général'!C100","v":"Montant généré"},null,null,null,null,0,{"$f":"J161-H161","v":0},{"$f":"'Décompte général'!J100","v":0}]
[null,null,{"$f":"+'Décompte général'!C101","v":"Franchise réservée au(x) producteur(s) délégué(s)"},null,null,null,{"$f":"+'Décompte général'!G101","v":150000},0,{"$f":"J162-H162","v":0},{"$f":"-MIN(J161,G162)","v":0}]
[null,null,{"$f":"+'Décompte général'!C102","v":"Base de répartition"},null,null,null,null,0,0,{"$f":"SUM(J161:J162)","v":0}]
[]
[]
[null,null,null,null,null,null,null,null,null,null,null,null,"Ne rien renseigner sous les colonnes Antérieur, Période et Cumul (cf. tutoriel étape 4 pour plus de détails.)"]